Workbook

Sheet Protokoll 1 (5nm)
A1: =IF(Data!$AE$2="DE","Messprotokoll",IF(Data!$AE$2="UK","Measurement protocol",IF(Data!$AE$2="FR","Rapport de mesure","Language Error"))) -> Messprotokoll
A4: =IF(Data!$AE$2 = "DE", "Prüfling:", IF(Data!$AE$2 = "UK","Test object:",IF(Data!$AE$2="FR","Objet testé:","Language Error"))) -> Prüfling: | N4: Philips | BK4: =IF(Data!$AE$2="DE","Messdatei:",IF(Data!$AE$2="UK","Measurement file:",IF(Data!$AE$2="FR","Fichier de mesure:","Language Error"))) -> Messdatei: | CG4: =Data!Q18 -> Test-M.CSV
N5: Master TL-D Super 80 | BK5: =IF(Data!$AE$2="DE","Datum der Messung:",IF(Data!$AE$2="UK","Date of measurement:",IF(Data!$AE$2="FR","Date de mesure:","Language Error"))) -> Datum der Messung: | CG5: =Data!Q23 -> 03.03.2017
N6: 36W/840 | BK6: =IF(Data!$AE$2="DE","Uhrzeit der Messung:",IF(Data!$AE$2="UK","Time of measurement:",IF(Data!$AE$2="FR","Heure de mesure:","Language Error"))) -> Uhrzeit der Messung: | CG6: =Data!Q21 -> 08:17:53
D23: R1 | I23: = | K23: =Data!K2 -> 91.71 | R23: Ra | W23: = | Y23: =Data!K1 -> 79.81 | AI23: =IF(Data!$AE$2="DE","Beleuchtungsstärke",IF(Data!$AE$2="UK","Illuminance",IF(Data!$AE$2="FR","Illuminance","Language Error"))) -> Beleuchtungsstärke | BN23: =Data!K33 -> 3356.21 | CI23: =IF(CI24="x","CIE1931",IF(CI24="u'","CIE1976",IF(CI24="u","CIE1960",""))) -> CIE1931
D24: R2 | I24: = | K24: =Data!K3 -> 88.83 | R24: Re | W24: = | Y24: =Data!Q27 -> 70.18 | AI24: Ee | BN24: =Data!Q25 -> 9.4 | CI24: =Data!J23 -> x | CL24: = | CN24: =Data!K23 -> 0.394
D25: R3 | I25: = | K25: =Data!K4 -> 57.53 | R25: GAI | W25: = | Y25: =Data!Q28 -> 69.14 | AI25: LER | BN25: =Data!Q26 -> 357 | CI25: =Data!J24 -> y | CL25: = | CN25: =Data!K24 -> 0.3976
D26: R4 | I26: = | K26: =Data!K5 -> 86.75
D27: R5 | I27: = | K27: =Data!K6 -> 81.88 | AI27: =IF(Data!$AE$2 = "DE", "Ähnlichste Farbtemperatur (CCT)", IF(Data!$AE$2 = "UK","correlated color temperature (CCT)",IF(Data!$AE$2="FR","temp. de couleur proximale (CCT)","Language Error"))) -> Ähnlichste Farbtemperatur (CCT) | BN27: =Data!K30 -> 3809 | CI27: =IF(CI28="x","CIE1931",IF(CI28="u'","CIE1976",IF(CI28="u","CIE1960",""))) -> CIE1976
D28: R6 | I28: = | K28: =Data!K7 -> 75.45 | AI28: Duv | BN28: =Data!K31 -> 0.0057 | CI28: =Data!J25 -> u' | CL28: = | CN28: =Data!K25 -> 0.2257
D29: R7 | I29: = | K29: =Data!K8 -> 88.44 | CI29: =Data!J26 -> v' | CL29: = | CN29: =Data!K26 -> 0.5124
D30: R8 | I30: = | K30: =Data!K9 -> 67.86 | AI30: =IF(Data!$AE$2 = "DE", "Farbreinheit",IF(Data!$AE$2 = "UK","Saturation",IF(Data!$AE$2="FR","Saturation","Language Error"))) -> Farbreinheit | BN30: =Data!K39 -> 37.5
D31: R9 | I31: = | K31: =Data!K10 -> -4.37 | CI31: =IF(CI32="x","CIE1931",IF(CI32="u'","CIE1976",IF(CI32="u","CIE1960",""))) -> CIE1960
D32: R10 | I32: = | K32: =Data!K11 -> 44.54 | AI32: =IF(Data!$AE$2 = "DE", "Dominante Wellenlänge", IF(Data!$AE$2 = "UK", "Dominant wavelength",IF(Data!$AE$2="FR","Longueur d'onde dominante (λD)","Language Error"))) -> Dominante Wellenlänge | BN32: =Data!K40 & " nm" -> 577 nm | CI32: =Data!J27 -> u | CL32: = | CN32: =Data!K27 -> 0.2257
D33: R11 | I33: = | K33: =Data!K12 -> 71.98 | AI33: =IF(Data!$AE$2 = "DE", "Peak-Wellenlänge",IF(Data!$AE$2 = "UK", "Peak wavelength",IF(Data!$AE$2="FR","Pic courbe spectrale (λP)","Language Error"))) -> Peak-Wellenlänge | BN33: =Data!K20 & " nm" -> 543 nm | CI33: =Data!J28 -> v | CL33: = | CN33: =Data!K28 -> 0.3416
D34: R12 | I34: = | K34: =Data!K13 -> 49.3
D35: R13 | I35: = | K35: =Data!K14 -> 92.95 | AI35: =IF(Data!$AE$2 = "DE", "Flickerfrequenz", IF(Data!$AE$2 = "UK","Flicker frequency",IF(Data!$AE$2="FR","Fréquence flicker","Language Error"))) -> Flickerfrequenz | BN35: =Data!K36 -> 100 | CI35: TM30
D36: R14 | I36: = | K36: =Data!K15 -> 71.88 | AI36: =IF(Data!$AE$2 = "DE", "Prozent Flicker", IF(Data!$AE$2 = "UK","Percent Flicker",IF(Data!$AE$2="FR","% flicker","Language Error"))) -> Prozent Flicker | BN36: =Data!K37 -> 25.5 | CI36: Rf | CN36: = | CP36: =Data!K43 -> 77.6
D37: R15 | I37: = | K37: =Data!K16 -> 88.02 | AI37: =IF(Data!$AE$2 = "DE", "Flickerindex", IF(Data!$AE$2 = "UK","Flicker index",IF(Data!$AE$2="FR","Index flicker","Language Error"))) -> Flickerindex | BN37: =Data!K35 -> 0.073 | CI37: Rg | CN37: = | CP37: =Data!K44 -> 97.5
C40: [nm] | I40: mW/m²/nm | Q40: [nm] | W40: mW/m²/nm | AE40: [nm] | AK40: mW/m²/nm | AS40: [nm] | AY40: mW/m²/nm | BG40: [nm] | BM40: mW/m²/nm | BU40: [nm] | CA40: mW/m²/nm | CI40: [nm] | CO40: mW/m²/nm
C41: =Data!G1 -> 380 | I41: =Data!H1 -> 0.5724 | Q41: =Data!G13 -> 440 | W41: =Data!H13 -> 32.8832 | AE41: =Data!G25 -> 500 | AK41: =Data!H25 -> 13.5647 | AS41: =Data!G37 -> 560 | AY41: =Data!H37 -> 16.0821 | BG41: =Data!G49 -> 620 | BM41: =Data!H49 -> 55.5173 | BU41: =Data!G61 -> 680 | CA41: =Data!H61 -> 5.8703 | CI41: =Data!G73 -> 740 | CO41: =Data!H73 -> 0.8606
C42: =Data!G2 -> 385 | I42: =Data!H2 -> 0.2068 | Q42: =Data!G14 -> 445 | W42: =Data!H14 -> 18.2843 | AE42: =Data!G26 -> 505 | AK42: =Data!H26 -> 8.2265 | AS42: =Data!G38 -> 565 | AY42: =Data!H38 -> 13.2568 | BG42: =Data!G50 -> 625 | BM42: =Data!H50 -> 43.1929 | BU42: =Data!G62 -> 685 | CA42: =Data!H62 -> 6.3794 | CI42: =Data!G74 -> 745 | CO42: =Data!H74 -> 0.865
C43: =Data!G3 -> 390 | I43: =Data!H3 -> 0.4615 | Q43: =Data!G15 -> 450 | W43: =Data!H15 -> 18.1922 | AE43: =Data!G27 -> 510 | AK43: =Data!H27 -> 6.1431 | AS43: =Data!G39 -> 570 | AY43: =Data!H39 -> 15.9605 | BG43: =Data!G51 -> 630 | BM43: =Data!H51 -> 33.5984 | BU43: =Data!G63 -> 690 | CA43: =Data!H63 -> 5.379 | CI43: =Data!G75 -> 750 | CO43: =Data!H75 -> 0.2378
C44: =Data!G4 -> 395 | I44: =Data!H4 -> 1.4526 | Q44: =Data!G16 -> 455 | W44: =Data!H16 -> 17.9373 | AE44: =Data!G28 -> 515 | AK44: =Data!H28 -> 5.6165 | AS44: =Data!G40 -> 575 | AY44: =Data!H40 -> 28.3709 | BG44: =Data!G52 -> 635 | BM44: =Data!H52 -> 18.7111 | BU44: =Data!G64 -> 695 | CA44: =Data!H64 -> 4.6967 | CI44: =Data!G76 -> 755 | CO44: =Data!H76 -> 0.0564
C45: =Data!G5 -> 400 | I45: =Data!H5 -> 15.3386 | Q45: =Data!G17 -> 460 | W45: =Data!H17 -> 16.9191 | AE45: =Data!G29 -> 520 | AK45: =Data!H29 -> 5.7843 | AS45: =Data!G41 -> 580 | AY45: =Data!H41 -> 42.8839 | BG45: =Data!G53 -> 640 | BM45: =Data!H53 -> 11.091 | BU45: =Data!G65 -> 700 | CA45: =Data!H65 -> 6.7085 | CI45: =Data!G77 -> 760 | CO45: =Data!H77 -> 0.0491
C46: =Data!G6 -> 405 | I46: =Data!H6 -> 19.5168 | Q46: =Data!G18 -> 465 | W46: =Data!H18 -> 15.5221 | AE46: =Data!G30 -> 525 | AK46: =Data!H30 -> 7.9572 | AS46: =Data!G42 -> 585 | AY46: =Data!H42 -> 47.6159 | BG46: =Data!G54 -> 645 | BM46: =Data!H54 -> 10.4683 | BU46: =Data!G66 -> 705 | CA46: =Data!H66 -> 12.506 | CI46: =Data!G78 -> 765 | CO46: =Data!H78 -> 0
C47: =Data!G7 -> 410 | I47: =Data!H7 -> 7.0986 | Q47: =Data!G19 -> 470 | W47: =Data!H19 -> 14.143 | AE47: =Data!G31 -> 530 | AK47: =Data!H31 -> 17.5209 | AS47: =Data!G43 -> 590 | AY47: =Data!H43 -> 43.179 | BG47: =Data!G55 -> 650 | BM47: =Data!H55 -> 11.2611 | BU47: =Data!G67 -> 710 | CA47: =Data!H67 -> 13.232 | CI47: =Data!G79 -> 770 | CO47: =Data!H79 -> 0
C48: =Data!G8 -> 415 | I48: =Data!H8 -> 5.8689 | Q48: =Data!G20 -> 475 | W48: =Data!H20 -> 14.6428 | AE48: =Data!G32 -> 535 | AK48: =Data!H32 -> 56.849 | AS48: =Data!G44 -> 595 | AY48: =Data!H44 -> 36.7412 | BG48: =Data!G56 -> 655 | BM48: =Data!H56 -> 10.1099 | BU48: =Data!G68 -> 715 | CA48: =Data!H68 -> 6.6807 | CI48: =Data!G80 -> 775 | CO48: =Data!H80 -> 0.1083
C49: =Data!G9 -> 420 | I49: =Data!H9 -> 8.2624 | Q49: =Data!G21 -> 480 | W49: =Data!H21 -> 24.4728 | AE49: =Data!G33 -> 540 | AK49: =Data!H33 -> 139.4167 | AS49: =Data!G45 -> 600 | AY49: =Data!H45 -> 37.3251 | BG49: =Data!G57 -> 660 | BM49: =Data!H57 -> 8.9038 | BU49: =Data!G69 -> 720 | CA49: =Data!H69 -> 2.535 | CI49: =Data!G81 -> 780 | CO49: =Data!H81 -> 0
C50: =Data!G10 -> 425 | I50: =Data!H10 -> 11.8791 | Q50: =Data!G22 -> 485 | W50: =Data!H22 -> 39.4171 | AE50: =Data!G34 -> 545 | AK50: =Data!H34 -> 160.0821 | AS50: =Data!G46 -> 605 | AY50: =Data!H46 -> 78.0795 | BG50: =Data!G58 -> 665 | BM50: =Data!H58 -> 7.5665 | BU50: =Data!G70 -> 725 | CA50: =Data!H70 -> 1.5956
C51: =Data!G11 -> 430 | I51: =Data!H11 -> 41.2391 | Q51: =Data!G23 -> 490 | W51: =Data!H23 -> 36.7989 | AE51: =Data!G35 -> 550 | AK51: =Data!H35 -> 86.4032 | AS51: =Data!G47 -> 610 | AY51: =Data!H47 -> 135.8429 | BG51: =Data!G59 -> 670 | BM51: =Data!H59 -> 5.6666 | BU51: =Data!G71 -> 730 | CA51: =Data!H71 -> 0.6619
C52: =Data!G12 -> 435 | I52: =Data!H12 -> 64.1299 | Q52: =Data!G24 -> 495 | W52: =Data!H24 -> 23.703 | AE52: =Data!G36 -> 555 | AK52: =Data!H36 -> 32.0569 | AS52: =Data!G48 -> 615 | AY52: =Data!H48 -> 105.4771 | BG52: =Data!G60 -> 675 | BM52: =Data!H60 -> 5.3181 | BU52: =Data!G72 -> 735 | CA52: =Data!H72 -> 0.78
A54: =IF(Data!$AE$2="DE","Firma",IF(Data!$AE$2="UK","Company",IF(Data!$AE$2="FR","Société","Language Error"))) -> Firma
A55: =IF(Data!$AE$2="DE","Adresse",IF(Data!$AE$2="UK","Address",IF(Data!$AE$2="FR","Adresse","Language Error"))) -> Adresse
A56: =IF(Data!$AE$2="DE","PLZ Ort",IF(Data!$AE$2="UK","ZIP City",IF(Data!$AE$2="FR","Code postal Ville","Language Error"))) -> PLZ Ort
A58: =IF(Data!$AE$2="DE","Prüfort,",IF(Data!$AE$2="UK","Test location,",IF(Data!$AE$2="FR","Lieu de rapport, ","Language Error"))) -> Prüfort, | P58: =IF(Data!$AE$2="DE","Datum",IF(Data!$AE$2="UK","Date",IF(Data!$AE$2="FR","Date","Language Error"))) -> Datum | BL58: =IF(Data!$AE$2="DE","Vorname, Nachname Prüfer",IF(Data!$AE$2="UK","First, last name of inspector",IF(Data!$AE$2="FR","Prénom Nom du testeur","Language Error"))) -> Vorname, Nachname Prüfer | CG58: =IF(Data!$AE$2="DE","Telefonnummer",IF(Data!$AE$2="UK","Phone number",IF(Data!$AE$2="FR","N° téléphone","Language Error"))) -> Telefonnummer

Sheet Protokoll 2 (native)
A1: =IF(Data!$AE$2="DE","Messprotokoll",IF(Data!$AE$2="UK","Measurement protocol",IF(Data!$AE$2="FR","Rapport de mesure","Language Error"))) -> Messprotokoll
A4: =IF(Data!$AE$2 = "DE", "Prüfling:", IF(Data!$AE$2 = "UK","Test object:",IF(Data!$AE$2="FR","Objet testé:","Language Error"))) -> Prüfling: | N4: ='Protokoll 1 (5nm)'!N4:BG4 -> Philips | BK4: =IF(Data!$AE$2="DE","Messdatei:",IF(Data!$AE$2="UK","Measurement file:",IF(Data!$AE$2="FR","Fichier de mesure:","Language Error"))) -> Messdatei: | CG4: =Data!Q18 -> Test-M.CSV
N5: ='Protokoll 1 (5nm)'!N5:BG5 -> Master TL-D Super 80 | BK5: =IF(Data!$AE$2="DE","Datum der Messung:",IF(Data!$AE$2="UK","Date of measurement:",IF(Data!$AE$2="FR","Date de mesure:","Language Error"))) -> Datum der Messung: | CG5: =Data!Q23 -> 03.03.2017
N6: ='Protokoll 1 (5nm)'!N6:BG6 -> 36W/840 | BK6: =IF(Data!$AE$2="DE","Uhrzeit der Messung:",IF(Data!$AE$2="UK","Time of measurement:",IF(Data!$AE$2="FR","Heure de mesure:","Language Error"))) -> Uhrzeit der Messung: | CG6: =Data!Q21 -> 08:17:53
B22: [nm] | G22: mW/m²/nm | P22: [nm] | U22: mW/m²/nm | AD22: [nm] | AI22: mW/m²/nm | AR22: [nm] | AW22: mW/m²/nm | BF22: [nm] | BK22: mW/m²/nm | BT22: [nm] | BY22: mW/m²/nm | CH22: [nm] | CM22: mW/m²/nm
B23: =Data!$G1 -> 380 | G23: =Data!$H1 -> 0.5724 | P23: =Data!$G32 -> 535 | U23: =Data!$H32 -> 56.849 | AD23: =IF(Data!$G63="","",Data!$G63) -> 690 | AI23: =IF(Data!$H63="","",Data!$H63) -> 5.379 | AR23: =IF(Data!$G94="","",Data!$G94) ->  | AW23: =IF(Data!$H94="","",Data!$H94) ->  | BF23: =IF(Data!$G125="","",Data!$G125) ->  | BK23: =IF(Data!$H125="","",Data!$H125) ->  | BT23: =IF(Data!$G156="","",Data!$G156) ->  | BY23: =IF(Data!$H156="","",Data!$H156) ->  | CH23: =IF(Data!$G187="","",Data!$G187) ->  | CM23: =IF(Data!$H187="","",Data!$H187) -> 
B24: =Data!$G2 -> 385 | G24: =Data!$H2 -> 0.2068 | P24: =Data!$G33 -> 540 | U24: =Data!$H33 -> 139.4167 | AD24: =IF(Data!$G64="","",Data!$G64) -> 695 | AI24: =IF(Data!$H64="","",Data!$H64) -> 4.6967 | AR24: =IF(Data!$G95="","",Data!$G95) ->  | AW24: =IF(Data!$H95="","",Data!$H95) ->  | BF24: =IF(Data!$G126="","",Data!$G126) ->  | BK24: =IF(Data!$H126="","",Data!$H126) ->  | BT24: =IF(Data!$G157="","",Data!$G157) ->  | BY24: =IF(Data!$H157="","",Data!$H157) ->  | CH24: =IF(Data!$G188="","",Data!$G188) ->  | CM24: =IF(Data!$H188="","",Data!$H188) -> 
B25: =Data!$G3 -> 390 | G25: =Data!$H3 -> 0.4615 | P25: =Data!$G34 -> 545 | U25: =Data!$H34 -> 160.0821 | AD25: =IF(Data!$G65="","",Data!$G65) -> 700 | AI25: =IF(Data!$H65="","",Data!$H65) -> 6.7085 | AR25: =IF(Data!$G96="","",Data!$G96) ->  | AW25: =IF(Data!$H96="","",Data!$H96) ->  | BF25: =IF(Data!$G127="","",Data!$G127) ->  | BK25: =IF(Data!$H127="","",Data!$H127) ->  | BT25: =IF(Data!$G158="","",Data!$G158) ->  | BY25: =IF(Data!$H158="","",Data!$H158) ->  | CH25: =IF(Data!$G189="","",Data!$G189) ->  | CM25: =IF(Data!$H189="","",Data!$H189) -> 
B26: =Data!$G4 -> 395 | G26: =Data!$H4 -> 1.4526 | P26: =Data!$G35 -> 550 | U26: =Data!$H35 -> 86.4032 | AD26: =IF(Data!$G66="","",Data!$G66) -> 705 | AI26: =IF(Data!$H66="","",Data!$H66) -> 12.506 | AR26: =IF(Data!$G97="","",Data!$G97) ->  | AW26: =IF(Data!$H97="","",Data!$H97) ->  | BF26: =IF(Data!$G128="","",Data!$G128) ->  | BK26: =IF(Data!$H128="","",Data!$H128) ->  | BT26: =IF(Data!$G159="","",Data!$G159) ->  | BY26: =IF(Data!$H159="","",Data!$H159) ->  | CH26: =IF(Data!$G190="","",Data!$G190) ->  | CM26: =IF(Data!$H190="","",Data!$H190) -> 
B27: =Data!$G5 -> 400 | G27: =Data!$H5 -> 15.3386 | P27: =Data!$G36 -> 555 | U27: =Data!$H36 -> 32.0569 | AD27: =IF(Data!$G67="","",Data!$G67) -> 710 | AI27: =IF(Data!$H67="","",Data!$H67) -> 13.232 | AR27: =IF(Data!$G98="","",Data!$G98) ->  | AW27: =IF(Data!$H98="","",Data!$H98) ->  | BF27: =IF(Data!$G129="","",Data!$G129) ->  | BK27: =IF(Data!$H129="","",Data!$H129) ->  | BT27: =IF(Data!$G160="","",Data!$G160) ->  | BY27: =IF(Data!$H160="","",Data!$H160) ->  | CH27: =IF(Data!$G191="","",Data!$G191) ->  | CM27: =IF(Data!$H191="","",Data!$H191) -> 
B28: =Data!$G6 -> 405 | G28: =Data!$H6 -> 19.5168 | P28: =Data!$G37 -> 560 | U28: =Data!$H37 -> 16.0821 | AD28: =IF(Data!$G68="","",Data!$G68) -> 715 | AI28: =IF(Data!$H68="","",Data!$H68) -> 6.6807 | AR28: =IF(Data!$G99="","",Data!$G99) ->  | AW28: =IF(Data!$H99="","",Data!$H99) ->  | BF28: =IF(Data!$G130="","",Data!$G130) ->  | BK28: =IF(Data!$H130="","",Data!$H130) ->  | BT28: =IF(Data!$G161="","",Data!$G161) ->  | BY28: =IF(Data!$H161="","",Data!$H161) ->  | CH28: =IF(Data!$G192="","",Data!$G192) ->  | CM28: =IF(Data!$H192="","",Data!$H192) -> 
B29: =Data!$G7 -> 410 | G29: =Data!$H7 -> 7.0986 | P29: =Data!$G38 -> 565 | U29: =Data!$H38 -> 13.2568 | AD29: =IF(Data!$G69="","",Data!$G69) -> 720 | AI29: =IF(Data!$H69="","",Data!$H69) -> 2.535 | AR29: =IF(Data!$G100="","",Data!$G100) ->  | AW29: =IF(Data!$H100="","",Data!$H100) ->  | BF29: =IF(Data!$G131="","",Data!$G131) ->  | BK29: =IF(Data!$H131="","",Data!$H131) ->  | BT29: =IF(Data!$G162="","",Data!$G162) ->  | BY29: =IF(Data!$H162="","",Data!$H162) ->  | CH29: =IF(Data!$G193="","",Data!$G193) ->  | CM29: =IF(Data!$H193="","",Data!$H193) -> 
B30: =Data!$G8 -> 415 | G30: =Data!$H8 -> 5.8689 | P30: =Data!$G39 -> 570 | U30: =Data!$H39 -> 15.9605 | AD30: =IF(Data!$G70="","",Data!$G70) -> 725 | AI30: =IF(Data!$H70="","",Data!$H70) -> 1.5956 | AR30: =IF(Data!$G101="","",Data!$G101) ->  | AW30: =IF(Data!$H101="","",Data!$H101) ->  | BF30: =IF(Data!$G132="","",Data!$G132) ->  | BK30: =IF(Data!$H132="","",Data!$H132) ->  | BT30: =IF(Data!$G163="","",Data!$G163) ->  | BY30: =IF(Data!$H163="","",Data!$H163) ->  | CH30: =IF(Data!$G194="","",Data!$G194) ->  | CM30: =IF(Data!$H194="","",Data!$H194) -> 
B31: =Data!$G9 -> 420 | G31: =Data!$H9 -> 8.2624 | P31: =Data!$G40 -> 575 | U31: =Data!$H40 -> 28.3709 | AD31: =IF(Data!$G71="","",Data!$G71) -> 730 | AI31: =IF(Data!$H71="","",Data!$H71) -> 0.6619 | AR31: =IF(Data!$G102="","",Data!$G102) ->  | AW31: =IF(Data!$H102="","",Data!$H102) ->  | BF31: =IF(Data!$G133="","",Data!$G133) ->  | BK31: =IF(Data!$H133="","",Data!$H133) ->  | BT31: =IF(Data!$G164="","",Data!$G164) ->  | BY31: =IF(Data!$H164="","",Data!$H164) ->  | CH31: =IF(Data!$G195="","",Data!$G195) ->  | CM31: =IF(Data!$H195="","",Data!$H195) -> 
B32: =Data!$G10 -> 425 | G32: =Data!$H10 -> 11.8791 | P32: =Data!$G41 -> 580 | U32: =Data!$H41 -> 42.8839 | AD32: =IF(Data!$G72="","",Data!$G72) -> 735 | AI32: =IF(Data!$H72="","",Data!$H72) -> 0.78 | AR32: =IF(Data!$G103="","",Data!$G103) ->  | AW32: =IF(Data!$H103="","",Data!$H103) ->  | BF32: =IF(Data!$G134="","",Data!$G134) ->  | BK32: =IF(Data!$H134="","",Data!$H134) ->  | BT32: =IF(Data!$G165="","",Data!$G165) ->  | BY32: =IF(Data!$H165="","",Data!$H165) ->  | CH32: =IF(Data!$G196="","",Data!$G196) ->  | CM32: =IF(Data!$H196="","",Data!$H196) -> 
B33: =Data!$G11 -> 430 | G33: =Data!$H11 -> 41.2391 | P33: =Data!$G42 -> 585 | U33: =Data!$H42 -> 47.6159 | AD33: =IF(Data!$G73="","",Data!$G73) -> 740 | AI33: =IF(Data!$H73="","",Data!$H73) -> 0.8606 | AR33: =IF(Data!$G104="","",Data!$G104) ->  | AW33: =IF(Data!$H104="","",Data!$H104) ->  | BF33: =IF(Data!$G135="","",Data!$G135) ->  | BK33: =IF(Data!$H135="","",Data!$H135) ->  | BT33: =IF(Data!$G166="","",Data!$G166) ->  | BY33: =IF(Data!$H166="","",Data!$H166) ->  | CH33: =IF(Data!$G197="","",Data!$G197) ->  | CM33: =IF(Data!$H197="","",Data!$H197) -> 
B34: =Data!$G12 -> 435 | G34: =Data!$H12 -> 64.1299 | P34: =Data!$G43 -> 590 | U34: =Data!$H43 -> 43.179 | AD34: =IF(Data!$G74="","",Data!$G74) -> 745 | AI34: =IF(Data!$H74="","",Data!$H74) -> 0.865 | AR34: =IF(Data!$G105="","",Data!$G105) ->  | AW34: =IF(Data!$H105="","",Data!$H105) ->  | BF34: =IF(Data!$G136="","",Data!$G136) ->  | BK34: =IF(Data!$H136="","",Data!$H136) ->  | BT34: =IF(Data!$G167="","",Data!$G167) ->  | BY34: =IF(Data!$H167="","",Data!$H167) ->  | CH34: =IF(Data!$G198="","",Data!$G198) ->  | CM34: =IF(Data!$H198="","",Data!$H198) -> 
B35: =Data!$G13 -> 440 | G35: =Data!$H13 -> 32.8832 | P35: =Data!$G44 -> 595 | U35: =Data!$H44 -> 36.7412 | AD35: =IF(Data!$G75="","",Data!$G75) -> 750 | AI35: =IF(Data!$H75="","",Data!$H75) -> 0.2378 | AR35: =IF(Data!$G106="","",Data!$G106) ->  | AW35: =IF(Data!$H106="","",Data!$H106) ->  | BF35: =IF(Data!$G137="","",Data!$G137) ->  | BK35: =IF(Data!$H137="","",Data!$H137) ->  | BT35: =IF(Data!$G168="","",Data!$G168) ->  | BY35: =IF(Data!$H168="","",Data!$H168) ->  | CH35: =IF(Data!$G199="","",Data!$G199) ->  | CM35: =IF(Data!$H199="","",Data!$H199) -> 
B36: =Data!$G14 -> 445 | G36: =Data!$H14 -> 18.2843 | P36: =Data!$G45 -> 600 | U36: =Data!$H45 -> 37.3251 | AD36: =IF(Data!$G76="","",Data!$G76) -> 755 | AI36: =IF(Data!$H76="","",Data!$H76) -> 0.0564 | AR36: =IF(Data!$G107="","",Data!$G107) ->  | AW36: =IF(Data!$H107="","",Data!$H107) ->  | BF36: =IF(Data!$G138="","",Data!$G138) ->  | BK36: =IF(Data!$H138="","",Data!$H138) ->  | BT36: =IF(Data!$G169="","",Data!$G169) ->  | BY36: =IF(Data!$H169="","",Data!$H169) ->  | CH36: =IF(Data!$G200="","",Data!$G200) ->  | CM36: =IF(Data!$H200="","",Data!$H200) -> 
B37: =Data!$G15 -> 450 | G37: =Data!$H15 -> 18.1922 | P37: =Data!$G46 -> 605 | U37: =Data!$H46 -> 78.0795 | AD37: =IF(Data!$G77="","",Data!$G77) -> 760 | AI37: =IF(Data!$H77="","",Data!$H77) -> 0.0491 | AR37: =IF(Data!$G108="","",Data!$G108) ->  | AW37: =IF(Data!$H108="","",Data!$H108) ->  | BF37: =IF(Data!$G139="","",Data!$G139) ->  | BK37: =IF(Data!$H139="","",Data!$H139) ->  | BT37: =IF(Data!$G170="","",Data!$G170) ->  | BY37: =IF(Data!$H170="","",Data!$H170) ->  | CH37: =IF(Data!$G201="","",Data!$G201) ->  | CM37: =IF(Data!$H201="","",Data!$H201) -> 
B38: =Data!$G16 -> 455 | G38: =Data!$H16 -> 17.9373 | P38: =Data!$G47 -> 610 | U38: =Data!$H47 -> 135.8429 | AD38: =IF(Data!$G78="","",Data!$G78) -> 765 | AI38: =IF(Data!$H78="","",Data!$H78) -> 0 | AR38: =IF(Data!$G109="","",Data!$G109) ->  | AW38: =IF(Data!$H109="","",Data!$H109) ->  | BF38: =IF(Data!$G140="","",Data!$G140) ->  | BK38: =IF(Data!$H140="","",Data!$H140) ->  | BT38: =IF(Data!$G171="","",Data!$G171) ->  | BY38: =IF(Data!$H171="","",Data!$H171) ->  | CH38: =IF(Data!$G202="","",Data!$G202) ->  | CM38: =IF(Data!$H202="","",Data!$H202) -> 
B39: =Data!$G17 -> 460 | G39: =Data!$H17 -> 16.9191 | P39: =Data!$G48 -> 615 | U39: =Data!$H48 -> 105.4771 | AD39: =IF(Data!$G79="","",Data!$G79) -> 770 | AI39: =IF(Data!$H79="","",Data!$H79) -> 0 | AR39: =IF(Data!$G110="","",Data!$G110) ->  | AW39: =IF(Data!$H110="","",Data!$H110) ->  | BF39: =IF(Data!$G141="","",Data!$G141) ->  | BK39: =IF(Data!$H141="","",Data!$H141) ->  | BT39: =IF(Data!$G172="","",Data!$G172) ->  | BY39: =IF(Data!$H172="","",Data!$H172) ->  | CH39: =IF(Data!$G203="","",Data!$G203) ->  | CM39: =IF(Data!$H203="","",Data!$H203) -> 
B40: =Data!$G18 -> 465 | G40: =Data!$H18 -> 15.5221 | P40: =Data!$G49 -> 620 | U40: =Data!$H49 -> 55.5173 | AD40: =IF(Data!$G80="","",Data!$G80) -> 775 | AI40: =IF(Data!$H80="","",Data!$H80) -> 0.1083 | AR40: =IF(Data!$G111="","",Data!$G111) ->  | AW40: =IF(Data!$H111="","",Data!$H111) ->  | BF40: =IF(Data!$G142="","",Data!$G142) ->  | BK40: =IF(Data!$H142="","",Data!$H142) ->  | BT40: =IF(Data!$G173="","",Data!$G173) ->  | BY40: =IF(Data!$H173="","",Data!$H173) ->  | CH40: =IF(Data!$G204="","",Data!$G204) ->  | CM40: =IF(Data!$H204="","",Data!$H204) -> 
B41: =Data!$G19 -> 470 | G41: =Data!$H19 -> 14.143 | P41: =Data!$G50 -> 625 | U41: =Data!$H50 -> 43.1929 | AD41: =IF(Data!$G81="","",Data!$G81) -> 780 | AI41: =IF(Data!$H81="","",Data!$H81) -> 0 | AR41: =IF(Data!$G112="","",Data!$G112) ->  | AW41: =IF(Data!$H112="","",Data!$H112) ->  | BF41: =IF(Data!$G143="","",Data!$G143) ->  | BK41: =IF(Data!$H143="","",Data!$H143) ->  | BT41: =IF(Data!$G174="","",Data!$G174) ->  | BY41: =IF(Data!$H174="","",Data!$H174) ->  | CH41: =IF(Data!$G205="","",Data!$G205) ->  | CM41: =IF(Data!$H205="","",Data!$H205) -> 
B42: =Data!$G20 -> 475 | G42: =Data!$H20 -> 14.6428 | P42: =Data!$G51 -> 630 | U42: =Data!$H51 -> 33.5984 | AD42: =IF(Data!$G82="","",Data!$G82) ->  | AI42: =IF(Data!$H82="","",Data!$H82) ->  | AR42: =IF(Data!$G113="","",Data!$G113) ->  | AW42: =IF(Data!$H113="","",Data!$H113) ->  | BF42: =IF(Data!$G144="","",Data!$G144) ->  | BK42: =IF(Data!$H144="","",Data!$H144) ->  | BT42: =IF(Data!$G175="","",Data!$G175) ->  | BY42: =IF(Data!$H175="","",Data!$H175) ->  | CH42: =IF(Data!$G206="","",Data!$G206) ->  | CM42: =IF(Data!$H206="","",Data!$H206) -> 
B43: =Data!$G21 -> 480 | G43: =Data!$H21 -> 24.4728 | P43: =Data!$G52 -> 635 | U43: =Data!$H52 -> 18.7111 | AD43: =IF(Data!$G83="","",Data!$G83) ->  | AI43: =IF(Data!$H83="","",Data!$H83) ->  | AR43: =IF(Data!$G114="","",Data!$G114) ->  | AW43: =IF(Data!$H114="","",Data!$H114) ->  | BF43: =IF(Data!$G145="","",Data!$G145) ->  | BK43: =IF(Data!$H145="","",Data!$H145) ->  | BT43: =IF(Data!$G176="","",Data!$G176) ->  | BY43: =IF(Data!$H176="","",Data!$H176) ->  | CH43: =IF(Data!$G207="","",Data!$G207) ->  | CM43: =IF(Data!$H207="","",Data!$H207) -> 
B44: =Data!$G22 -> 485 | G44: =Data!$H22 -> 39.4171 | P44: =Data!$G53 -> 640 | U44: =Data!$H53 -> 11.091 | AD44: =IF(Data!$G84="","",Data!$G84) ->  | AI44: =IF(Data!$H84="","",Data!$H84) ->  | AR44: =IF(Data!$G115="","",Data!$G115) ->  | AW44: =IF(Data!$H115="","",Data!$H115) ->  | BF44: =IF(Data!$G146="","",Data!$G146) ->  | BK44: =IF(Data!$H146="","",Data!$H146) ->  | BT44: =IF(Data!$G177="","",Data!$G177) ->  | BY44: =IF(Data!$H177="","",Data!$H177) ->  | CH44: =IF(Data!$G208="","",Data!$G208) ->  | CM44: =IF(Data!$H208="","",Data!$H208) -> 
B45: =Data!$G23 -> 490 | G45: =Data!$H23 -> 36.7989 | P45: =Data!$G54 -> 645 | U45: =Data!$H54 -> 10.4683 | AD45: =IF(Data!$G85="","",Data!$G85) ->  | AI45: =IF(Data!$H85="","",Data!$H85) ->  | AR45: =IF(Data!$G116="","",Data!$G116) ->  | AW45: =IF(Data!$H116="","",Data!$H116) ->  | BF45: =IF(Data!$G147="","",Data!$G147) ->  | BK45: =IF(Data!$H147="","",Data!$H147) ->  | BT45: =IF(Data!$G178="","",Data!$G178) ->  | BY45: =IF(Data!$H178="","",Data!$H178) ->  | CH45: =IF(Data!$G209="","",Data!$G209) ->  | CM45: =IF(Data!$H209="","",Data!$H209) -> 
B46: =Data!$G24 -> 495 | G46: =Data!$H24 -> 23.703 | P46: =Data!$G55 -> 650 | U46: =Data!$H55 -> 11.2611 | AD46: =IF(Data!$G86="","",Data!$G86) ->  | AI46: =IF(Data!$H86="","",Data!$H86) ->  | AR46: =IF(Data!$G117="","",Data!$G117) ->  | AW46: =IF(Data!$H117="","",Data!$H117) ->  | BF46: =IF(Data!$G148="","",Data!$G148) ->  | BK46: =IF(Data!$H148="","",Data!$H148) ->  | BT46: =IF(Data!$G179="","",Data!$G179) ->  | BY46: =IF(Data!$H179="","",Data!$H179) ->  | CH46: =IF(Data!$G210="","",Data!$G210) ->  | CM46: =IF(Data!$H210="","",Data!$H210) -> 
B47: =Data!$G25 -> 500 | G47: =Data!$H25 -> 13.5647 | P47: =Data!$G56 -> 655 | U47: =Data!$H56 -> 10.1099 | AD47: =IF(Data!$G87="","",Data!$G87) ->  | AI47: =IF(Data!$H87="","",Data!$H87) ->  | AR47: =IF(Data!$G118="","",Data!$G118) ->  | AW47: =IF(Data!$H118="","",Data!$H118) ->  | BF47: =IF(Data!$G149="","",Data!$G149) ->  | BK47: =IF(Data!$H149="","",Data!$H149) ->  | BT47: =IF(Data!$G180="","",Data!$G180) ->  | BY47: =IF(Data!$H180="","",Data!$H180) ->  | CH47: =IF(Data!$G211="","",Data!$G211) ->  | CM47: =IF(Data!$H211="","",Data!$H211) -> 
B48: =Data!$G26 -> 505 | G48: =Data!$H26 -> 8.2265 | P48: =Data!$G57 -> 660 | U48: =Data!$H57 -> 8.9038 | AD48: =IF(Data!$G88="","",Data!$G88) ->  | AI48: =IF(Data!$H88="","",Data!$H88) ->  | AR48: =IF(Data!$G119="","",Data!$G119) ->  | AW48: =IF(Data!$H119="","",Data!$H119) ->  | BF48: =IF(Data!$G150="","",Data!$G150) ->  | BK48: =IF(Data!$H150="","",Data!$H150) ->  | BT48: =IF(Data!$G181="","",Data!$G181) ->  | BY48: =IF(Data!$H181="","",Data!$H181) ->  | CH48: =IF(Data!$G212="","",Data!$G212) ->  | CM48: =IF(Data!$H212="","",Data!$H212) -> 
B49: =Data!$G27 -> 510 | G49: =Data!$H27 -> 6.1431 | P49: =Data!$G58 -> 665 | U49: =Data!$H58 -> 7.5665 | AD49: =IF(Data!$G89="","",Data!$G89) ->  | AI49: =IF(Data!$H89="","",Data!$H89) ->  | AR49: =IF(Data!$G120="","",Data!$G120) ->  | AW49: =IF(Data!$H120="","",Data!$H120) ->  | BF49: =IF(Data!$G151="","",Data!$G151) ->  | BK49: =IF(Data!$H151="","",Data!$H151) ->  | BT49: =IF(Data!$G182="","",Data!$G182) ->  | BY49: =IF(Data!$H182="","",Data!$H182) ->  | CH49: =IF(Data!$G213="","",Data!$G213) ->  | CM49: =IF(Data!$H213="","",Data!$H213) -> 
B50: =Data!$G28 -> 515 | G50: =Data!$H28 -> 5.6165 | P50: =Data!$G59 -> 670 | U50: =Data!$H59 -> 5.6666 | AD50: =IF(Data!$G90="","",Data!$G90) ->  | AI50: =IF(Data!$H90="","",Data!$H90) ->  | AR50: =IF(Data!$G121="","",Data!$G121) ->  | AW50: =IF(Data!$H121="","",Data!$H121) ->  | BF50: =IF(Data!$G152="","",Data!$G152) ->  | BK50: =IF(Data!$H152="","",Data!$H152) ->  | BT50: =IF(Data!$G183="","",Data!$G183) ->  | BY50: =IF(Data!$H183="","",Data!$H183) ->  | CH50: =IF(Data!$G214="","",Data!$G214) ->  | CM50: =IF(Data!$H214="","",Data!$H214) -> 
B51: =Data!$G29 -> 520 | G51: =Data!$H29 -> 5.7843 | P51: =Data!$G60 -> 675 | U51: =Data!$H60 -> 5.3181 | AD51: =IF(Data!$G91="","",Data!$G91) ->  | AI51: =IF(Data!$H91="","",Data!$H91) ->  | AR51: =IF(Data!$G122="","",Data!$G122) ->  | AW51: =IF(Data!$H122="","",Data!$H122) ->  | BF51: =IF(Data!$G153="","",Data!$G153) ->  | BK51: =IF(Data!$H153="","",Data!$H153) ->  | BT51: =IF(Data!$G184="","",Data!$G184) ->  | BY51: =IF(Data!$H184="","",Data!$H184) ->  | CH51: =IF(Data!$G215="","",Data!$G215) ->  | CM51: =IF(Data!$H215="","",Data!$H215) -> 
B52: =Data!$G30 -> 525 | G52: =Data!$H30 -> 7.9572 | P52: =Data!$G61 -> 680 | U52: =Data!$H61 -> 5.8703 | AD52: =IF(Data!$G92="","",Data!$G92) ->  | AI52: =IF(Data!$H92="","",Data!$H92) ->  | AR52: =IF(Data!$G123="","",Data!$G123) ->  | AW52: =IF(Data!$H123="","",Data!$H123) ->  | BF52: =IF(Data!$G154="","",Data!$G154) ->  | BK52: =IF(Data!$H154="","",Data!$H154) ->  | BT52: =IF(Data!$G185="","",Data!$G185) ->  | BY52: =IF(Data!$H185="","",Data!$H185) ->  | CH52: =IF(Data!$G216="","",Data!$G216) ->  | CM52: =IF(Data!$H216="","",Data!$H216) -> 
B53: =Data!$G31 -> 530 | G53: =Data!$H31 -> 17.5209 | P53: =Data!$G62 -> 685 | U53: =Data!$H62 -> 6.3794 | AD53: =IF(Data!$G93="","",Data!$G93) ->  | AI53: =IF(Data!$H93="","",Data!$H93) ->  | AR53: =IF(Data!$G124="","",Data!$G124) ->  | AW53: =IF(Data!$H124="","",Data!$H124) ->  | BF53: =IF(Data!$G155="","",Data!$G155) ->  | BK53: =IF(Data!$H155="","",Data!$H155) ->  | BT53: =IF(Data!$G186="","",Data!$G186) ->  | BY53: =IF(Data!$H186="","",Data!$H186) ->  | CH53: =IF(Data!$G217="","",Data!$G217) ->  | CM53: =IF(Data!$H217="","",Data!$H217) -> 
A64: ='Protokoll 1 (5nm)'!A54:AA54 -> Firma
A65: ='Protokoll 1 (5nm)'!A55:AA55 -> Adresse
A66: ='Protokoll 1 (5nm)'!A56:AA56 -> PLZ Ort
A68: ='Protokoll 1 (5nm)'!A58:O58 -> Prüfort, | P68: ='Protokoll 1 (5nm)'!P58:AA58 -> Datum | BL68: ='Protokoll 1 (5nm)'!BL58:CF58 -> Vorname, Nachname Prüfer | CG68: ='Protokoll 1 (5nm)'!CG58:CX58 -> Telefonnummer

Sheet Protokoll 3
A1: =IF(Data!$AE$2="DE","Messprotokoll",IF(Data!$AE$2="UK","Measurement protocol",IF(Data!$AE$2="FR","Rapport de mesure","Language Error"))) -> Messprotokoll
A4: =IF(Data!$AE$2 = "DE", "Prüfling:", IF(Data!$AE$2 = "UK","Test object:",IF(Data!$AE$2="FR","Objet testé:","Language Error"))) -> Prüfling: | N4: ='Protokoll 1 (5nm)'!N4:BG4 -> Philips | BK4: =IF(Data!$AE$2="DE","Messdatei:",IF(Data!$AE$2="UK","Measurement file:",IF(Data!$AE$2="FR","Fichier de mesure:","Language Error"))) -> Messdatei: | CG4: =Data!Q18 -> Test-M.CSV
N5: ='Protokoll 1 (5nm)'!N5:BG5 -> Master TL-D Super 80 | BK5: =IF(Data!$AE$2="DE","Datum der Messung:",IF(Data!$AE$2="UK","Date of measurement:",IF(Data!$AE$2="FR","Date de mesure:","Language Error"))) -> Datum der Messung: | CG5: =Data!Q23 -> 03.03.2017
N6: ='Protokoll 1 (5nm)'!N6:BG6 -> 36W/840 | BK6: =IF(Data!$AE$2="DE","Uhrzeit der Messung:",IF(Data!$AE$2="UK","Time of measurement:",IF(Data!$AE$2="FR","Heure de mesure:","Language Error"))) -> Uhrzeit der Messung: | CG6: =Data!Q21 -> 08:17:53
A60: ='Protokoll 1 (5nm)'!A54:AA54 -> Firma
A61: ='Protokoll 1 (5nm)'!A55:AA55 -> Adresse
A62: ='Protokoll 1 (5nm)'!A56:AA56 -> PLZ Ort
A64: ='Protokoll 1 (5nm)'!A58:O58 -> Prüfort, | P64: ='Protokoll 1 (5nm)'!P58:AA58 -> Datum | BL64: ='Protokoll 1 (5nm)'!BL58:CF58 -> Vorname, Nachname Prüfer | CG64: ='Protokoll 1 (5nm)'!CG58:CX58 -> Telefonnummer

Sheet Protokoll TM30
A1: =IF(Data!$AE$2="DE","Messprotokoll",IF(Data!$AE$2="UK","Measurement protocol",IF(Data!$AE$2="FR","Rapport de mesure","Language Error"))) -> Messprotokoll
A4: =IF(Data!$AE$2 = "DE", "Prüfling:", IF(Data!$AE$2 = "UK","Test object:",IF(Data!$AE$2="FR","Objet testé:","Language Error"))) -> Prüfling: | N4: ='Protokoll 1 (5nm)'!N4:BG4 -> Philips | BK4: =IF(Data!$AE$2="DE","Messdatei:",IF(Data!$AE$2="UK","Measurement file:",IF(Data!$AE$2="FR","Fichier de mesure:","Language Error"))) -> Messdatei: | CG4: =Data!Q18 -> Test-M.CSV
N5: ='Protokoll 1 (5nm)'!N5:BG5 -> Master TL-D Super 80 | BK5: =IF(Data!$AE$2="DE","Datum der Messung:",IF(Data!$AE$2="UK","Date of measurement:",IF(Data!$AE$2="FR","Date de mesure:","Language Error"))) -> Datum der Messung: | CG5: =Data!Q23 -> 03.03.2017
N6: ='Protokoll 1 (5nm)'!N6:BG6 -> 36W/840 | BK6: =IF(Data!$AE$2="DE","Uhrzeit der Messung:",IF(Data!$AE$2="UK","Time of measurement:",IF(Data!$AE$2="FR","Heure de mesure:","Language Error"))) -> Uhrzeit der Messung: | CG6: =Data!Q21 -> 08:17:53
A54: ='Protokoll 1 (5nm)'!A54:AA54 -> Firma
A55: ='Protokoll 1 (5nm)'!A55:AA55 -> Adresse
A56: ='Protokoll 1 (5nm)'!A56:AA56 -> PLZ Ort
A58: ='Protokoll 1 (5nm)'!A58:O58 -> Prüfort, | P58: ='Protokoll 1 (5nm)'!P58:AA58 -> Datum | BL58: ='Protokoll 1 (5nm)'!BL58:CF58 -> Vorname, Nachname Prüfer | CG58: ='Protokoll 1 (5nm)'!CG58:CX58 -> Telefonnummer

Sheet Referenzvergleich
A1: =IF(Data!$AE$2="DE","Messprotokoll",IF(Data!$AE$2="UK","Measurement protocol",IF(Data!$AE$2="FR","Rapport de mesure","Language Error"))) -> Messprotokoll
A4: =IF(Data!$AE$2 = "DE", "Prüfling:", IF(Data!$AE$2 = "UK","Test object:",IF(Data!$AE$2="FR","Objet testé:","Language Error"))) -> Prüfling: | N4: ='Protokoll 1 (5nm)'!N4:BG4 -> Philips | BK4: =IF(Data!$AE$2="DE","Messdatei:",IF(Data!$AE$2="UK","Measurement file:",IF(Data!$AE$2="FR","Fichier de mesure:","Language Error"))) -> Messdatei: | CG4: =Data!Q18 -> Test-M.CSV
N5: ='Protokoll 1 (5nm)'!N5:BG5 -> Master TL-D Super 80 | BK5: =IF(Data!$AE$2="DE","Datum der Messung:",IF(Data!$AE$2="UK","Date of measurement:",IF(Data!$AE$2="FR","Date de mesure:","Language Error"))) -> Datum der Messung: | CG5: =Data!Q23 -> 03.03.2017
N6: ='Protokoll 1 (5nm)'!N6:BG6 -> 36W/840 | BK6: =IF(Data!$AE$2="DE","Uhrzeit der Messung:",IF(Data!$AE$2="UK","Time of measurement:",IF(Data!$AE$2="FR","Heure de mesure:","Language Error"))) -> Uhrzeit der Messung: | CG6: =Data!Q21 -> 08:17:53
BK7: =IF(Data!$AE$2="DE","Referenzdatei:",IF(Data!$AE$2="UK","Reference file:",IF(Data!$AE$2="FR","Fichier de référence:","Language Error"))) -> Referenzdatei: | CG7: =Data!AC18 -> Test-R.CSV
BK8: =IF(Data!$AE$2="DE","Datum der Messung:",IF(Data!$AE$2="UK","Date of measurement:",IF(Data!$AE$2="FR","Date de mesure:","Language Error"))) -> Datum der Messung: | CG8: =Data!AC23 -> 03.03.2017
BK9: =IF(Data!$AE$2="DE","Uhrzeit der Messung:",IF(Data!$AE$2="UK","Time of measurement:",IF(Data!$AE$2="FR","Heure de mesure:","Language Error"))) -> Uhrzeit der Messung: | CG9: =Data!AC21 -> 08:16:07
G25: =Data!$AB$18 -> Referenz | Q25: =Data!$P$18 -> Messwert | AD25: Δ | BO25: =Data!$AB$18 -> Referenz | CA25: =Data!$P$18 -> Messwert | CN25: Δ
B26: Ra | G26: =Data!W1 -> 96.95 | Q26: =Data!K1 -> 79.81 | AD26: =Q26-G26 -> -17.14 | AK26: =IF(Data!$AE$2="DE","Beleuchtungsstärke",IF(Data!$AE$2="UK","Illuminance",IF(Data!$AE$2="FR","Illuminance","Language Error"))) -> Beleuchtungsstärke | BO26: =Data!W33 -> 10027.19 | CA26: =Data!K33 -> 3356.21 | CN26: =CA26-BO26 -> -6670.98
B27: R1 | G27: =Data!W2 -> 96.04 | Q27: =Data!K2 -> 91.71 | AD27: =Q27-G27 -> -4.33 | AK27: Ee | BO27: =Data!AC25 -> 50.147 | CA27: =Data!Q25 -> 9.4 | CN27: =CA27-BO27 -> -40.747
B28: R2 | G28: =Data!W3 -> 97.21 | Q28: =Data!K3 -> 88.83 | AD28: -8.38 | AK28: LER | BO28: =Data!AC26 -> 200 | CA28: =Data!Q26 -> 357 | CN28: =CA28-BO28 -> 157
B29: R3 | G29: =Data!W4 -> 98.85 | Q29: =Data!K4 -> 57.53 | AD29: -41.32
B30: R4 | G30: =Data!W5 -> 96.56 | Q30: =Data!K5 -> 86.75 | AD30: -9.81 | AK30: =IF(Data!$AE$2 = "DE", "Ähnlichste Farbtemperatur (CCT)", IF(Data!$AE$2 = "UK","correlated color temperature (CCT)",IF(Data!$AE$2="FR","temp. de couleur proximale (CCT)","Language Error"))) -> Ähnlichste Farbtemperatur (CCT) | BO30: =Data!W30 -> 5445 | CA30: =Data!K30 -> 3809 | CN30: =CA30-BO30 -> -1636
B31: R5 | G31: =Data!W6 -> 96.15 | Q31: =Data!K6 -> 81.88 | AD31: -14.27 | AK31: Duv | BO31: =Data!W31 -> 0.0008 | CA31: =Data!K31 -> 0.0057 | CN31: =CA31-BO31 -> 0.0049
B32: R6 | G32: =Data!W7 -> 96.64 | Q32: =Data!K7 -> 75.45 | AD32: -21.19
B33: R7 | G33: =Data!W8 -> 98.87 | Q33: =Data!K8 -> 88.44 | AD33: -10.43 | AK33: =IF(Data!$AE$2 = "DE", "Farbreinheit",IF(Data!$AE$2 = "UK","Saturation",IF(Data!$AE$2="FR","Saturation","Language Error"))) -> Farbreinheit | BO33: =Data!W39/100 -> 0.032 | CA33: =Data!K39/100 -> 0.375 | CN33: =CA33-BO33 -> 0.343
B34: R8 | G34: =Data!W9 -> 95.27 | Q34: =Data!K9 -> 67.86 | AD34: -27.41
B35: R9 | G35: =Data!W10 -> 85.8 | Q35: =Data!K10 -> -4.37 | AD35: -90.17 | AK35: =IF(Data!$AE$2 = "DE", "Dominante Wellenlänge", IF(Data!$AE$2 = "UK", "Dominant wavelength",IF(Data!$AE$2="FR","Longueur d'onde dominante (λD)","Language Error"))) -> Dominante Wellenlänge | BO35: =Data!W40 ->  | CA35: =Data!K40 -> 577 | CN35: =CA35-BO35 -> 
B36: R10 | G36: =Data!W11 -> 93.74 | Q36: =Data!K11 -> 44.54 | AD36: -49.2 | AK36: =IF(Data!$AE$2 = "DE", "Peak-Wellenlänge",IF(Data!$AE$2 = "UK", "Peak wavelength",IF(Data!$AE$2="FR","Pic courbe spectrale (λP)","Language Error"))) -> Peak-Wellenlänge | BO36: =Data!W20 -> 477 | CA36: =Data!K20 -> 543 | CN36: =CA36-BO36 -> 66
B37: R11 | G37: =Data!W12 -> 95.73 | Q37: =Data!K12 -> 71.98 | AD37: -23.75
B38: R12 | G38: =Data!W13 -> 94.14 | Q38: =Data!K13 -> 49.3 | AD38: -44.84 | AK38: TM30 Rf | BO38: =Data!W43 -> 96.1 | CA38: =Data!K43 -> 77.6 | CN38: =CA38-BO38 -> -18.5
B39: R13 | G39: =Data!W14 -> 96.08 | Q39: =Data!K14 -> 92.95 | AD39: -3.13 | AK39: TM30 Rg | BO39: =Data!W44 -> 99.8 | CA39: =Data!K44 -> 97.5 | CN39: =CA39-BO39 -> -2.3
B40: R14 | G40: =Data!W15 -> 99.31 | Q40: =Data!K15 -> 71.88 | AD40: -27.43
B41: R15 | G41: =Data!W16 -> 95.11 | Q41: =Data!K16 -> 88.02 | AD41: -7.09
B43: Re | G43: =Data!AC27 -> 95.7 | Q43: =Data!Q27 -> 70.18 | AD43: =Q43-G43 -> -25.52
B44: GAI | G44: =Data!AC28 -> 95.1 | Q44: =Data!Q28 -> 69.14 | AD44: =Q44-G44 -> -25.96
A51: ='Protokoll 1 (5nm)'!A54:AA54 -> Firma
A52: ='Protokoll 1 (5nm)'!A55:AA55 -> Adresse
A53: ='Protokoll 1 (5nm)'!A56:AA56 -> PLZ Ort
A55: ='Protokoll 1 (5nm)'!A58:O58 -> Prüfort, | P55: ='Protokoll 1 (5nm)'!P58:AA58 -> Datum | BL55: ='Protokoll 1 (5nm)'!BL58:CF58 -> Vorname, Nachname Prüfer | CG55: ='Protokoll 1 (5nm)'!CG58:CX58 -> Telefonnummer

Sheet Data
A1: Seriennummer | B1: 16C12345 | C1: Seriennummer | D1: 16C12345 | F1: 1 | G1: =IF(INDEX($A$1:$A$500,MATCH("Spe*",$A$1:$A$500,0)+F1)=0,"",INDEX($A$1:$A$500,MATCH("Spe*",$A$1:$A$500,0)+F1)) -> 380 | H1: =IF(INDEX($A$1:$A$500,MATCH("Spe*",$A$1:$A$500,0)+F1)=0,"",INDEX($B$1:$B$500,MATCH("Spe*",$A$1:$A$500,0)+F1)) -> 0.5724 | I1: CRI | J1: Ra | K1: =IF(ISNA(MATCH(I1,$A$1:$A$200,0)),IF($A$1="",NA(),INDEX($B$1:$B$200,MATCH(J1,$A$1:$A$200,0))),IF($A$1="",NA(),INDEX($B$1:$B$200,MATCH(I1,$A$1:$A$200,0)))) -> 79.81 | L1: =IF(K1="",NA(),IF(K1 < 0, 0, K1)) -> 79.81 | M1: =IF(G1="",NA(),ROUND(G1,0)) -> 380 | N1: =IF(H1="",NA(),H1) -> 0.5724 | P1: R15 | Q1: =IF($A$1="",NA(),INDEX($B$1:$B$200,MATCH(P1,$A$1:$A$200,0))) -> 88.02 | R1: 1 | S1: =IF(INDEX($C$1:$C$500,MATCH("Spe*",$C$1:$C$500,0)+R1)=0,"",INDEX($C$1:$C$500,MATCH("Spe*",$C$1:$C$500,0)+R1)) -> 380 | T1: =IF(INDEX($C$1:$C$500,MATCH("Spe*",$C$1:$C$500,0)+R1)=0,"",INDEX($D$1:$D$500,MATCH("Spe*",$C$1:$C$500,0)+R1)) -> 42.6069 | U1: CRI | V1: Ra | W1: =IF(ISNA(MATCH(U1,$C$1:$C$200,0)),IF($C$1="",NA(),INDEX($D$1:$D$200,MATCH(V1,$C$1:$C$200,0))),IF($C$1="",NA(),INDEX($D$1:$D$200,MATCH(U1,$C$1:$C$200,0)))) -> 96.95 | Y1: =IF(S1="",NA(),ROUND(S1,0)) -> 380 | Z1: =IF(T1="",NA(),T1) -> 42.6069 | AB1: R15 | AC1: =IF($C$1="",NA(),INDEX($D$1:$D$200,MATCH(AB1,$C$1:$C$200,0))) -> 95.11 | AG1: u | AH1: v | AI1: u' | AJ1: v' | AK1: x | AL1: y
A2: Software Rev. | B2: 1.1.3 | C2: Software Rev. | D2: 1.1.0 f | F2: =F1+1 -> 2 | G2: =IF(INDEX($A$1:$A$500,MATCH("Spe*",$A$1:$A$500,0)+F2)=0,"",INDEX($A$1:$A$500,MATCH("Spe*",$A$1:$A$500,0)+F2)) -> 385 | H2: =IF(INDEX($A$1:$A$500,MATCH("Spe*",$A$1:$A$500,0)+F2)=0,"",INDEX($B$1:$B$500,MATCH("Spe*",$A$1:$A$500,0)+F2)) -> 0.2068 | J2: R1 | K2: =IF($A$1="",NA(),INDEX($B$1:$B$200,MATCH(J2,$A$1:$A$200,0))) -> 91.71 | L2: =IF(K2="",NA(),IF(K2 < 0, 0, K2)) -> 91.71 | M2: 385 | N2: =IF(H2="",NA(),H2) -> 0.2068 | P2: R14 | Q2: =IF($A$1="",NA(),INDEX($B$1:$B$200,MATCH(P2,$A$1:$A$200,0))) -> 71.88 | R2: =R1+1 -> 2 | S2: =IF(INDEX($C$1:$C$500,MATCH("Spe*",$C$1:$C$500,0)+R2)=0,"",INDEX($C$1:$C$500,MATCH("Spe*",$C$1:$C$500,0)+R2)) -> 385 | T2: =IF(INDEX($C$1:$C$500,MATCH("Spe*",$C$1:$C$500,0)+R2)=0,"",INDEX($D$1:$D$500,MATCH("Spe*",$C$1:$C$500,0)+R2)) -> 44.1981 | V2: R1 | W2: =IF($C$1="",NA(),INDEX($D$1:$D$200,MATCH(V2,$C$1:$C$200,0))) -> 96.04 | Y2: 385 | Z2: =IF(T2="",NA(),T2) -> 44.1981 | AB2: R14 | AC2: =IF($C$1="",NA(),INDEX($D$1:$D$200,MATCH(AB2,$C$1:$C$200,0))) -> 99.31 | AE2: DE | AG2: 0.18006 | AH2: 0.26352 | AI2: =AG2 -> 0.18006 | AJ2: =AH2*1.5 -> 0.39528 | AK2: =(9*AG2)/(6*AG2-16*AJ2+12) -> 0.2398710457 | AL2: =(4*AJ2)/(6*AG2-16*AJ2+12) -> 0.2340361285
A3: Zeit | B3: 08:17:53 | C3: Zeit | D3: 08:16:07 | F3: =F2+1 -> 3 | G3: 390 | H3: 0.4615 | J3: R2 | K3: 88.83 | L3: 88.83 | M3: 390 | N3: 0.4615 | P3: R13 | Q3: 92.95 | R3: =R2+1 -> 3 | S3: 390 | T3: 48.4497 | V3: R2 | W3: 97.21 | Y3: 390 | Z3: 48.4497 | AB3: R13 | AC3: 96.08 | AG3: 0.18066 | AH3: 0.26589 | AI3: =AG3 -> 0.18066 | AJ3: =AH3*1.5 -> 0.398835 | AK3: =(9*AG3)/(6*AG3-16*AJ3+12) -> 0.2425834751 | AL3: =(4*AJ3)/(6*AG3-16*AJ3+12) -> 0.2380180825
A4: Datum | B4: 03.03.2017 | C4: Datum | D4: 03.03.2017 | F4: 4 | G4: 395 | H4: 1.4526 | J4: R3 | K4: 57.53 | L4: 57.53 | M4: 395 | N4: 1.4526 | P4: R12 | Q4: 49.3 | R4: 4 | S4: 395 | T4: 59.8129 | V4: R3 | W4: 98.85 | Y4: 395 | Z4: 59.8129 | AB4: R12 | AC4: 94.14 | AG4: 0.18133 | AH4: 0.26846 | AI4: 0.18133 | AJ4: 0.40269 | AK4: 0.245595897 | AL4: 0.2424039946
F5: 5 | G5: 400 | H5: 15.3386 | J5: R4 | K5: 86.75 | L5: 86.75 | M5: 400 | N5: 15.3386 | P5: R11 | Q5: 71.98 | R5: 5 | S5: 400 | T5: 79.4269 | V5: R4 | W5: 96.56 | Y5: 400 | Z5: 79.4269 | AB5: R11 | AC5: 95.73 | AG5: 0.18208 | AH5: 0.27119 | AI5: 0.18208 | AJ5: 0.406785 | AK5: 0.2488973135 | AL5: 0.2471384828
A6: Integrationszeit [ms] | B6: 164 | C6: Integrationszeit [ms] | D6: 178 | F6: 6 | G6: 405 | H6: 19.5168 | J6: R5 | K6: 81.88 | L6: 81.88 | M6: 405 | N6: 19.5168 | P6: R10 | Q6: 44.54 | R6: 6 | S6: 405 | T6: 88.9175 | V6: R5 | W6: 96.15 | Y6: 405 | Z6: 88.9175 | AB6: R10 | AC6: 93.74 | AG6: 0.18293 | AH6: 0.27407 | AI6: 0.18293 | AJ6: 0.411105 | AK6: 0.2525146091 | AL6: 0.2522155248
A7: E vis [lx] | B7: 3356.21 | C7: E vis [lx] | D7: 10027.19 | F7: 7 | G7: 410 | H7: 7.0986 | J7: R6 | K7: 75.45 | L7: 75.45 | M7: 410 | N7: 7.0986 | P7: R9 | Q7: -4.37 | R7: 7 | S7: 410 | T7: 94.2277 | V7: R6 | W7: 96.64 | Y7: 410 | Z7: 94.2277 | AB7: R9 | AC7: 85.8 | AG7: 0.18388 | AH7: 0.27709 | AI7: 0.18388 | AJ7: 0.415635 | AK7: 0.2564526927 | AL7: 0.2576335168
A8: Ee [W/m²] | B8: 9.4 | C8: Ee [W/m≤] | D8: 50.147 | F8: 8 | G8: 415 | H8: 5.8689 | J8: R7 | K8: 88.44 | L8: 88.44 | M8: 415 | N8: 5.8689 | P8: R8 | Q8: 67.86 | R8: 8 | S8: 415 | T8: 98.6135 | V8: R7 | W8: 98.87 | Y8: 415 | Z8: 98.6135 | AB8: R8 | AC8: 95.27 | AG8: 0.18494 | AH8: 0.28021 | AI8: 0.18494 | AJ8: 0.420315 | AK8: 0.2606991824 | AL8: 0.263330514
A9: LER [lm/W] | B9: 357 | C9: LER [lm/W] | D9: 200 | F9: 9 | G9: 420 | H9: 8.2624 | J9: R8 | K9: 67.86 | L9: 67.86 | M9: 420 | N9: 8.2624 | P9: R7 | Q9: 88.44 | R9: 9 | S9: 420 | T9: 100.0747 | V9: R8 | W9: 95.27 | Y9: 420 | Z9: 100.0747 | AB9: R7 | AC9: 98.87 | AG9: 0.18611 | AH9: 0.28342 | AI9: 0.18611 | AJ9: 0.42513 | AK9: 0.2652575468 | AL9: 0.2693005711
A10: CCT [K] | B10: 3809 | C10: CCT [K] | D10: 5445 | F10: 10 | G10: 425 | H10: 11.8791 | J10: R9 | K10: -4.37 | L10: 0 | M10: 425 | N10: 11.8791 | P10: R6 | Q10: 75.45 | R10: 10 | S10: 425 | T10: 98.5439 | V10: R9 | W10: 85.8 | Y10: 425 | Z10: 98.5439 | AB10: R6 | AC10: 96.64 | AG10: 0.1874 | AH10: 0.28668 | AI10: 0.1874 | AJ10: 0.43002 | AK10: 0.2701118499 | AL10: 0.2754737287
A11: Duv | B11: 0.0057 | C11: Duv | D11: 0.0008 | F11: 11 | G11: 430 | H11: 41.2391 | J11: R10 | K11: 44.54 | L11: 44.54 | M11: 430 | N11: 41.2391 | P11: R5 | Q11: 81.88 | R11: 11 | S11: 430 | T11: 100.3488 | V11: R10 | W11: 93.74 | Y11: 430 | Z11: 100.3488 | AB11: R5 | AC11: 96.15 | AG11: 0.1888 | AH11: 0.28997 | AI11: 0.1888 | AJ11: 0.434955 | AK11: 0.2752400575 | AL11: 0.2818197722
A12: TM30 Rf | B12: 77.6 | C12: TM30 Rf | D12: 96.1 | F12: 12 | G12: 435 | H12: 64.1299 | J12: R11 | K12: 71.98 | L12: 71.98 | M12: 435 | N12: 64.1299 | P12: R4 | Q12: 86.75 | R12: 12 | S12: 435 | T12: 110.0917 | V12: R11 | W12: 95.73 | Y12: 435 | Z12: 110.0917 | AB12: R4 | AC12: 96.56 | AG12: 0.19032 | AH12: 0.29326 | AI12: 0.19032 | AJ12: 0.43989 | AK12: 0.2806307015 | AL12: 0.2882785467
A13: TM30 Rg | B13: 97.5 | C13: TM30 Rg | D13: 99.8 | F13: 13 | G13: 440 | H13: 32.8832 | J13: R12 | K13: 49.3 | L13: 49.3 | M13: 440 | N13: 32.8832 | P13: R3 | Q13: 57.53 | R13: 13 | S13: 440 | T13: 119.6392 | V13: R12 | W13: 94.14 | Y13: 440 | Z13: 119.6392 | AB13: R3 | AC13: 98.85 | AG13: 0.19462 | AH13: 0.30141 | AI13: 0.19462 | AJ13: 0.452115 | AK13: 0.2951829157 | AL13: 0.3047685494
A14: R-Bin01 a | B14: 0.972329 | C14: R-Bin01 a | D14: 0.977026 | F14: 14 | G14: 445 | H14: 18.2843 | J14: R13 | K14: 92.95 | L14: 92.95 | M14: 445 | N14: 18.2843 | P14: R2 | Q14: 88.83 | R14: 14 | S14: 445 | T14: 128.7273 | V14: R13 | W14: 96.08 | Y14: 445 | Z14: 128.7273 | AB14: R2 | AC14: 97.21 | AG14: 0.19962 | AH14: 0.30921 | AI14: 0.19962 | AJ14: 0.463815 | AK14: 0.3110056295 | AL14: 0.3211637134
A15: R-Bin01 b | B15: 0.233615 | C15: R-Bin01 b | D15: 0.21312 | F15: 15 | G15: 450 | H15: 18.1922 | J15: R14 | K15: 71.88 | L15: 71.88 | M15: 450 | N15: 18.1922 | P15: R1 | Q15: 91.71 | R15: 15 | S15: 450 | T15: 135.4352 | V15: R14 | W15: 99.31 | Y15: 450 | Z15: 135.4352 | AB15: R1 | AC15: 96.04 | AG15: 0.20525 | AH15: 0.31647 | AI15: 0.20525 | AJ15: 0.474705 | AK15: 0.3277462555 | AL15: 0.3368960048
A16: R-Bin02 a | B16: 0.81873 | C16: R-Bin02 a | D16: 0.837053 | F16: 16 | G16: 455 | H16: 17.9373 | J16: R15 | K16: 88.02 | L16: 88.02 | M16: 455 | N16: 17.9373 | O16: CRI | P16: Ra | Q16: =IF(ISNA(MATCH(O16,$A$1:$A$200,0)),IF($A$1="",NA(),INDEX($B$1:$B$200,MATCH(P16,$A$1:$A$200,0))),IF($A$1="",NA(),INDEX($B$1:$B$200,MATCH(O16,$A$1:$A$200,0)))) -> 79.81 | R16: 16 | S16: 455 | T16: 138.938 | V16: R15 | W16: 95.11 | Y16: 455 | Z16: 138.938 | AA16: CRI | AB16: Ra | AC16: =IF(ISNA(MATCH(AA16,$C$1:$C$200,0)),IF($C$1="",NA(),INDEX($D$1:$D$200,MATCH(AB16,$C$1:$C$200,0))),IF($C$1="",NA(),INDEX($D$1:$D$200,MATCH(AA16,$C$1:$C$200,0)))) -> 96.95 | AG16: 0.21142 | AH16: 0.32312 | AI16: 0.21142 | AJ16: 0.48468 | AK16: 0.3451041417 | AL16: 0.3516225216
A17: R-Bin02 b | B17: 0.574178 | C17: R-Bin02 b | D17: 0.547122 | F17: 17 | G17: 460 | H17: 16.9191 | J17: Integrationtime [ms] | M17: 460 | N17: 16.9191 | R17: 17 | S17: 460 | T17: 142.422 | V17: Integrationtime [ms] | Y17: 460 | Z17: 142.422 | AG17: 0.21807 | AH17: 0.32909 | AI17: 0.21807 | AJ17: 0.493635 | AK17: 0.3627607546 | AL17: 0.3649621275
A18: R-Bin03 a | B18: 0.551007 | C18: R-Bin03 a | D18: 0.541849 | F18: 18 | G18: 465 | H18: 15.5221 | J18: Integrationszeit [ms] | K18: =IF(ISNA(MATCH(J17,$A$1:$A$200,0)),IF($A$1="",NA(),INDEX($B$1:$B$200,MATCH(J18,$A$1:$A$200,0))),IF($A$1="",NA(),INDEX($B$1:$B$200,MATCH(J17,$A$1:$A$200,0)))) -> 164 | M18: 465 | N18: 15.5221 | P18: Messwert | Q18: Test-M.CSV | R18: 18 | S18: 465 | T18: 142.4762 | V18: Integrationszeit [ms] | W18: =IF(ISNA(MATCH(V17,$C$1:$C$200,0)),IF($C$1="",NA(),INDEX($D$1:$D$200,MATCH(V18,$C$1:$C$200,0))),IF($C$1="",NA(),INDEX($D$1:$D$200,MATCH(V17,$C$1:$C$200,0)))) -> 178 | Y18: 465 | Z18: 142.4762 | AB18: Referenz | AC18: Test-R.CSV | AG18: 0.22511 | AH18: 0.33439 | AI18: 0.22511 | AJ18: 0.501585 | AK18: 0.380446172 | AL18: 0.3767562391
A19: R-Bin03 b | B19: 0.834501 | C19: R-Bin03 b | D19: 0.840476 | F19: 19 | G19: 470 | H19: 14.143 | M19: 470 | N19: 14.143 | R19: 19 | S19: 470 | T19: 142.6783 | Y19: 470 | Z19: 142.6783 | AG19: 0.23247 | AH19: 0.33904 | AI19: 0.23247 | AJ19: 0.50856 | AK19: 0.3979242506 | AL19: 0.3868950486
A20: R-Bin04 a | B20: 0.167075 | C20: R-Bin04 a | D20: 0.178874 | F20: 20 | G20: 475 | H20: 14.6428 | J20: Lambda Peak [nm] | K20: =IF($A$1="",NA(),INDEX($B$1:$B$200,MATCH(J20,$A$1:$A$200,0))) -> 543 | M20: 475 | N20: 14.6428 | P20: Time | R20: 20 | S20: 475 | T20: 144.5065 | V20: Lambda Peak [nm] | W20: 477 | Y20: 475 | Z20: 144.5065 | AB20: Time | AG20: 0.2401 | AH20: 0.34308 | AI20: 0.2401 | AJ20: 0.51462 | AK20: 0.4150245454 | AL20: 0.3953536611
A21: R-Bin04 b | B21: 0.985944 | C21: R-Bin04 b | D21: 0.983872 | F21: 21 | G21: 480 | H21: 24.4728 | J21: Lambda Peak | K21: =IF($A$1="",NA(),INDEX($B$1:$B$200,MATCH(J21,$A$1:$A$200,0))) -> 168576.39 | M21: 480 | N21: 24.4728 | P21: Zeit | Q21: =IF(ISNA(MATCH(P20,$A$1:$A$200,0)),IF($A$1="",NA(),INDEX($B$1:$B$200,MATCH(P21,$A$1:$A$200,0))),IF($A$1="",NA(),INDEX($B$1:$B$200,MATCH(P20,$A$1:$A$200,0)))) -> 08:17:53 | R21: 21 | S21: 480 | T21: 143.8343 | V21: Lambda Peak | W21: 144880.75 | Y21: 480 | Z21: 143.8343 | AB21: Zeit | AC21: =IF(ISNA(MATCH(AB20,$C$1:$C$200,0)),IF($C$1="",NA(),INDEX($D$1:$D$200,MATCH(AB21,$C$1:$C$200,0))),IF($C$1="",NA(),INDEX($D$1:$D$200,MATCH(AB20,$C$1:$C$200,0)))) -> 08:16:07 | AG21: 0.24702 | AH21: 0.34655 | AI21: 0.24702 | AJ21: 0.519825 | AK21: 0.4304384192 | AL21: 0.4025812597
A22: R-Bin05 a | B22: -0.114747 | C22: R-Bin05 a | D22: -0.083004 | F22: 22 | G22: 485 | H22: 39.4171 | M22: 485 | N22: 39.4171 | P22: Date | R22: 22 | S22: 485 | T22: 140.5405 | Y22: 485 | Z22: 140.5405 | AB22: Date | AG22: 0.25591 | AH22: 0.34951 | AI22: 0.25591 | AJ22: 0.524265 | AK22: 0.4474629023 | AL22: 0.4074160421
A23: R-Bin05 b | B23: 0.993395 | C23: R-Bin05 b | D23: 0.996549 | F23: 23 | G23: 490 | H23: 36.7989 | J23: x | K23: =IF($A$1="",NA(),INDEX($B$1:$B$200,MATCH(J23,$A$1:$A$200,0))) -> 0.394 | M23: 490 | N23: 36.7989 | P23: Datum | Q23: =IF(ISNA(MATCH(P22,$A$1:$A$200,0)),IF($A$1="",NA(),INDEX($B$1:$B$200,MATCH(P23,$A$1:$A$200,0))),IF($A$1="",NA(),INDEX($B$1:$B$200,MATCH(P22,$A$1:$A$200,0)))) -> 03.03.2017 | R23: 23 | S23: 490 | T23: 142.1223 | V23: x | W23: 0.3337 | Y23: 490 | Z23: 142.1223 | AB23: Datum | AC23: =IF(ISNA(MATCH(AB22,$C$1:$C$200,0)),IF($C$1="",NA(),INDEX($D$1:$D$200,MATCH(AB23,$C$1:$C$200,0))),IF($C$1="",NA(),INDEX($D$1:$D$200,MATCH(AB22,$C$1:$C$200,0)))) -> 03.03.2017 | AG23: 0.264 | AH23: 0.352 | AI23: 0.264 | AJ23: 0.528 | AK23: 0.4626168224 | AL23: 0.4112149533
A24: R-Bin06 a | B24: -0.551884 | C24: R-Bin06 a | D24: -0.505713 | F24: 24 | G24: 495 | H24: 23.703 | J24: y | K24: 0.3976 | M24: 495 | N24: 23.703 | P24: Ee [W/m≤] | R24: 24 | S24: 495 | T24: 143.5925 | V24: y | W24: 0.3437 | Y24: 495 | Z24: 143.5925 | AB24: Ee [W/m≤] | AG24: 0.27218 | AH24: 0.35407 | AI24: 0.27218 | AJ24: 0.531105 | AK24: 0.4770066597 | AL24: 0.4136815048
A25: R-Bin06 b | B25: 0.833921 | C25: R-Bin06 b | D25: 0.862702 | F25: 25 | G25: 500 | H25: 13.5647 | J25: u' | K25: 0.2257 | M25: 500 | N25: 13.5647 | P25: Ee [W/m²] | Q25: =IF(ISNA(MATCH(P24,$A$1:$A$200,0)),IF($A$1="",NA(),INDEX($B$1:$B$200,MATCH(P25,$A$1:$A$200,0))),IF($A$1="",NA(),INDEX($B$1:$B$200,MATCH(P24,$A$1:$A$200,0)))) -> 9.4 | R25: 25 | S25: 500 | T25: 142.3747 | V25: u' | W25: 0.2067 | Y25: 500 | Z25: 142.3747 | AB25: Ee [W/m²] | AC25: =IF(ISNA(MATCH(AB24,$C$1:$C$200,0)),IF($C$1="",NA(),INDEX($D$1:$D$200,MATCH(AB25,$C$1:$C$200,0))),IF($C$1="",NA(),INDEX($D$1:$D$200,MATCH(AB24,$C$1:$C$200,0)))) -> 50.147 | AG25: 0.28039 | AH25: 0.35577 | AI25: 0.28039 | AJ25: 0.533655 | AK25: 0.4905868356 | AL25: 0.4149840781
A26: R-Bin07 a | B26: -0.85937 | C26: R-Bin07 a | D26: -0.821266 | F26: 26 | G26: 505 | H26: 8.2265 | J26: v' | K26: 0.5124 | M26: 505 | N26: 8.2265 | P26: LER [lm/W] | Q26: =IF($A$1="",NA(),INDEX($B$1:$B$200,MATCH(P26,$A$1:$A$200,0))) -> 357 | R26: 26 | S26: 505 | T26: 143.0867 | V26: v' | W26: 0.479 | Y26: 505 | Z26: 143.0867 | AB26: LER [lm/W] | AC26: =IF($C$1="",NA(),INDEX($D$1:$D$200,MATCH(AB26,$C$1:$C$200,0))) -> 200 | AG26: 0.28863 | AH26: 0.35714 | AI26: 0.28863 | AJ26: 0.53571 | AK26: 0.5033834455 | AL26: 0.4152452707
A27: R-Bin07 b | B27: 0.511354 | C27: R-Bin07 b | D27: 0.570546 | F27: 27 | G27: 510 | H27: 6.1431 | J27: u | K27: 0.2257 | M27: 510 | N27: 6.1431 | P27: Re | Q27: =IF($A$1="",NA(),INDEX($B$1:$B$200,MATCH(P27,$A$1:$A$200,0))) -> 70.18 | R27: 27 | S27: 510 | T27: 142.2774 | V27: u | W27: 0.2067 | Y27: 510 | Z27: 142.2774 | AB27: Re | AC27: =IF($C$1="",NA(),INDEX($D$1:$D$200,MATCH(AB27,$C$1:$C$200,0))) -> 95.7 | AG27: 0.29685 | AH27: 0.35823 | AI27: 0.29685 | AJ27: 0.537345 | AK27: 0.5154063408 | AL27: 0.41465165
A28: R-Bin08 a | B28: -0.990661 | C28: R-Bin08 a | D28: -0.994483 | F28: 28 | G28: 515 | H28: 5.6165 | J28: v | K28: 0.3416 | M28: 515 | N28: 5.6165 | P28: GAI | Q28: =IF(ISNA(MATCH(O28,$A$1:$A$200,0)),IF($A$1="",NA(),INDEX($B$1:$B$200,MATCH(P28,$A$1:$A$200,0))),IF($A$1="",NA(),INDEX($B$1:$B$200,MATCH(O28,$A$1:$A$200,0)))) -> 69.14 | R28: 28 | S28: 515 | T28: 138.1906 | V28: v | W28: 0.3194 | Y28: 515 | Z28: 138.1906 | AB28: GAI | AC28: =IF(ISNA(MATCH(AA28,$C$1:$C$200,0)),IF($C$1="",NA(),INDEX($D$1:$D$200,MATCH(AB28,$C$1:$C$200,0))),IF($C$1="",NA(),INDEX($D$1:$D$200,MATCH(AA28,$C$1:$C$200,0)))) -> 95.1 | AG28: 0.30505 | AH28: 0.35907 | AI28: 0.30505 | AJ28: 0.538605 | AK28: 0.5266929107 | AL28: 0.4133084706
A29: R-Bin08 b | B29: 0.136345 | C29: R-Bin08 b | D29: 0.104897 | F29: 29 | G29: 520 | H29: 5.7843 | M29: 520 | N29: 5.7843 | R29: 29 | S29: 520 | T29: 138.2417 | Y29: 520 | Z29: 138.2417 | AG29: 0.3132 | AH29: 0.35968 | AI29: 0.3132 | AJ29: 0.53952 | AK29: 0.5372335559 | AL29: 0.4113072912
A30: R-Bin09 a | B30: -0.99169 | C30: R-Bin09 a | D30: -0.984679 | F30: 30 | G30: 525 | H30: 7.9572 | J30: CCT [K] | K30: 3809 | M30: 525 | N30: 7.9572 | R30: 30 | S30: 525 | T30: 139.9675 | V30: CCT [K] | W30: 5445 | Y30: 525 | Z30: 139.9675 | AG30: 0.32129 | AH30: 0.36011 | AI30: 0.32129 | AJ30: 0.540165 | AK30: 0.5471249361 | AL30: 0.4088210251
A31: R-Bin09 b | B31: -0.128653 | C31: R-Bin09 b | D31: -0.174374 | F31: 31 | G31: 530 | H31: 17.5209 | J31: Duv | K31: 0.0057 | M31: 530 | N31: 17.5209 | R31: 31 | S31: 530 | T31: 140.9057 | V31: Duv | W31: 0.0008 | Y31: 530 | Z31: 140.9057 | AG31: 0.32931 | AH31: 0.36038 | AI31: 0.32931 | AJ31: 0.54057 | AK31: 0.5563984726 | AL31: 0.4059293301
A32: R-Bin10 a | B32: -0.863878 | C32: R-Bin10 a | D32: -0.87302 | F32: 32 | G32: 535 | H32: 56.849 | J32: E vis [fc] | M32: 535 | N32: 56.849 | R32: 32 | S32: 535 | T32: 140.9872 | V32: E vis [fc] | Y32: 535 | Z32: 140.9872 | AG32: 0.33724 | AH32: 0.36051 | AI32: 0.33724 | AJ32: 0.540765 | AK32: 0.565080429 | AL32: 0.4027144772
A33: R-Bin10 b | B33: -0.503701 | C33: R-Bin10 b | D33: -0.487685 | F33: 33 | G33: 540 | H33: 139.4167 | J33: E vis [lx] | K33: =IF(ISNA(MATCH(J32,$A$1:$A$200,0)),IF($A$1="",NA(),INDEX($B$1:$B$200,MATCH(J33,$A$1:$A$200,0))),IF($A$1="",NA(),INDEX($B$1:$B$200,MATCH(J32,$A$1:$A$200,0)))) -> 3356.21 | M33: 540 | N33: 139.4167 | R33: 33 | S33: 540 | T33: 140.2766 | V33: E vis [lx] | W33: =IF(ISNA(MATCH(V32,$C$1:$C$200,0)),IF($C$1="",NA(),INDEX($D$1:$D$200,MATCH(V33,$C$1:$C$200,0))),IF($C$1="",NA(),INDEX($D$1:$D$200,MATCH(V32,$C$1:$C$200,0)))) -> 10027.19 | Y33: 540 | Z33: 140.2766 | AG33: 0.37 | AH33: 0.3598 | AI33: =AG33 -> 0.37 | AJ33: =AH33*1.5 -> 0.5397 | AK33: =(9*AG33)/(6*AG33-16*AJ33+12) -> 0.5962612806 | AL33: =(4*AJ33)/(6*AG33-16*AJ33+12) -> 0.386549205
A34: R-Bin11 a | B34: -0.581181 | C34: R-Bin11 a | D34: -0.569017 | F34: 34 | G34: 545 | H34: 160.0821 | M34: 545 | N34: 160.0821 | R34: 34 | S34: 545 | T34: 140.2628 | Y34: 545 | Z34: 140.2628 | AG34: 0.4 | AH34: 0.357 | AI34: =AG34 -> 0.4 | AJ34: =AH34*1.5 -> 0.5355 | AK34: =(9*AG34)/(6*AG34-16*AJ34+12) -> 0.6172839506 | AL34: =(4*AJ34)/(6*AG34-16*AJ34+12) -> 0.3672839506
A35: R-Bin11 b | B35: -0.813774 | C35: R-Bin11 b | D35: -0.822326 | F35: 35 | G35: 550 | H35: 86.4032 | J35: Flicker Index | K35: =IF($A$1="",NA(),INDEX($B$1:$B$200,MATCH(J35,$A$1:$A$200,0))) -> 0.073 | M35: 550 | N35: 86.4032 | R35: 35 | S35: 550 | T35: 139.6259 | V35: Flicker Index | W35: 0 | Y35: 550 | Z35: 139.6259
A36: R-Bin12 a | B36: -0.325912 | C36: R-Bin12 a | D36: -0.146569 | F36: 36 | G36: 555 | H36: 32.0569 | J36: Flicker [Hz] | K36: =IF($A$1="",NA(),INDEX($B$1:$B$200,MATCH(J36,$A$1:$A$200,0))) -> 100 | M36: 555 | N36: 32.0569 | R36: 36 | S36: 555 | T36: 138.0119 | V36: Flicker [Hz] | W36: 0 | Y36: 555 | Z36: 138.0119
A37: R-Bin12 b | B37: -0.9454 | C37: R-Bin12 b | D37: -0.9892 | F37: 37 | G37: 560 | H37: 16.0821 | J37: Flicker [%] | K37: =IF($A$1="",NA(),INDEX($B$1:$B$200,MATCH(J37,$A$1:$A$200,0))) -> 25.5 | M37: 560 | N37: 16.0821 | R37: 37 | S37: 560 | T37: 135.1609 | V37: Flicker [%] | W37: 0 | Y37: 560 | Z37: 135.1609
A38: R-Bin13 a | B38: 0.104308 | C38: R-Bin13 a | D38: 0.166197 | F38: 38 | G38: 565 | H38: 13.2568 | J38: Excitation Purity [%] | M38: 565 | N38: 13.2568 | R38: 38 | S38: 565 | T38: 132.7949 | V38: Excitation Purity [%] | Y38: 565 | Z38: 132.7949
A39: R-Bin13 b | B39: -0.994545 | C39: R-Bin13 b | D39: -0.986093 | F39: 39 | G39: 570 | H39: 15.9605 | J39: Farbreinheit [%] | K39: =IF(ISNA(MATCH(J38,$A$1:$A$200,0)),IF($A$1="",NA(),INDEX($B$1:$B$200,MATCH(J39,$A$1:$A$200,0))),IF($A$1="",NA(),INDEX($B$1:$B$200,MATCH(J38,$A$1:$A$200,0)))) -> 37.5 | M39: 570 | N39: 15.9605 | R39: 39 | S39: 570 | T39: 130.6553 | V39: Farbreinheit [%] | W39: =IF(ISNA(MATCH(V38,$C$1:$C$200,0)),IF($C$1="",NA(),INDEX($D$1:$D$200,MATCH(V39,$C$1:$C$200,0))),IF($C$1="",NA(),INDEX($D$1:$D$200,MATCH(V38,$C$1:$C$200,0)))) -> 3.2 | Y39: 570 | Z39: 130.6553
A40: R-Bin14 a | B40: 0.440265 | C40: R-Bin14 a | D40: 0.59517 | F40: 40 | G40: 575 | H40: 28.3709 | J40: Dominante Wellenlänge [nm] | K40: =IF(ISNA(MATCH(J41,$A$1:$A$200,0)),IF($A$1="",NA(),INDEX($B$1:$B$200,MATCH("Dominante Wellenl*",$A$1:$A$200,0))),IF($A$1="",NA(),INDEX($B$1:$B$200,MATCH(J41,$A$1:$A$200,0)))) -> 577 | M40: 575 | N40: 28.3709 | R40: 40 | S40: 575 | T40: 130.7058 | V40: Dominante Wellenlänge [nm] | W40: =IF(ISNA(MATCH(V41,$C$1:$C$200,0)),IF($C$1="",NA(),INDEX($D$1:$D$200,MATCH(V40,$C$1:$C$200,0))),IF($C$1="",NA(),INDEX($D$1:$D$200,MATCH(V41,$C$1:$C$200,0)))) ->  | Y40: 575 | Z40: 130.7058
A41: R-Bin14 b | B41: -0.897868 | C41: R-Bin14 b | D41: -0.8036 | F41: 41 | G41: 580 | H41: 42.8839 | J41: Dominant wavelength [nm] | M41: 580 | N41: 42.8839 | R41: 41 | S41: 580 | T41: 132.814 | V41: Dominant wavelength [nm] | Y41: 580 | Z41: 132.814
A42: R-Bin15 a | B42: 0.802698 | C42: R-Bin15 a | D42: 0.833 | F42: 42 | G42: 585 | H42: 47.6159 | M42: 585 | N42: 47.6159 | R42: 42 | S42: 585 | T42: 133.1275 | Y42: 585 | Z42: 133.1275
A43: R-Bin15 b | B43: -0.596386 | C43: R-Bin15 b | D43: -0.553273 | F43: 43 | G43: 590 | H43: 43.179 | J43: TM30 Rf | K43: =IF($A$1="",NA(),INDEX($B$1:$B$200,MATCH(J43,$A$1:$A$200,0))) -> 77.6 | M43: 590 | N43: 43.179 | R43: 43 | S43: 590 | T43: 131.7606 | V43: TM30 Rf | W43: =IF($C$1="",NA(),INDEX($D$1:$D$200,MATCH(V43,$C$1:$C$200,0))) -> 96.1 | Y43: 590 | Z43: 131.7606
A44: R-Bin16 a | B44: 0.986903 | C44: R-Bin16 a | D44: 0.985226 | F44: 44 | G44: 595 | H44: 36.7412 | J44: TM30 Rg | K44: 97.5 | M44: 595 | N44: 36.7412 | R44: 44 | S44: 595 | T44: 131.8843 | V44: TM30 Rg | W44: 99.8 | Y44: 595 | Z44: 131.8843
A45: R-Bin16 b | B45: -0.161315 | C45: R-Bin16 b | D45: -0.171262 | F45: 45 | G45: 600 | H45: 37.3251 | J45: R-Bin01 a | K45: 0.972329 | M45: 600 | N45: 37.3251 | R45: 45 | S45: 600 | T45: 132.6607 | V45: R-Bin01 a | W45: 0.977026 | Y45: 600 | Z45: 132.6607
A46: T-Bin01 a | B46: 0.869512 | C46: T-Bin01 a | D46: 0.996644 | F46: 46 | G46: 605 | H46: 78.0795 | J46: R-Bin01 b | K46: 0.233615 | M46: 605 | N46: 78.0795 | R46: 46 | S46: 605 | T46: 133.4066 | V46: R-Bin01 b | W46: 0.21312 | Y46: 605 | Z46: 133.4066
A47: T-Bin01 b | B47: 0.175164 | C47: T-Bin01 b | D47: 0.214853 | F47: 47 | G47: 610 | H47: 135.8429 | J47: R-Bin02 a | K47: 0.81873 | M47: 610 | N47: 135.8429 | R47: 47 | S47: 610 | T47: 133.0814 | V47: R-Bin02 a | W47: 0.837053 | Y47: 610 | Z47: 133.0814
A48: T-Bin02 a | B48: 0.783916 | C48: T-Bin02 a | D48: 0.855062 | F48: 48 | G48: 615 | H48: 105.4771 | J48: R-Bin02 b | K48: 0.574178 | M48: 615 | N48: 105.4771 | R48: 48 | S48: 615 | T48: 132.9246 | V48: R-Bin02 b | W48: 0.547122 | Y48: 615 | Z48: 132.9246
A49: T-Bin02 b | B49: 0.567747 | C49: T-Bin02 b | D49: 0.545851 | F49: 49 | G49: 620 | H49: 55.5173 | J49: R-Bin03 a | K49: 0.551007 | M49: 620 | N49: 55.5173 | R49: 49 | S49: 620 | T49: 133.1305 | V49: R-Bin03 a | W49: 0.541849 | Y49: 620 | Z49: 133.1305
A50: T-Bin03 a | B50: 0.445065 | C50: T-Bin03 a | D50: 0.56872 | F50: 50 | G50: 625 | H50: 43.1929 | J50: R-Bin03 b | K50: 0.834501 | M50: 625 | N50: 43.1929 | R50: 50 | S50: 625 | T50: 131.8954 | V50: R-Bin03 b | W50: 0.840476 | Y50: 625 | Z50: 131.8954
A51: T-Bin03 b | B51: 0.856544 | C51: T-Bin03 b | D51: 0.828568 | F51: 51 | G51: 630 | H51: 33.5984 | J51: R-Bin04 a | K51: 0.167075 | M51: 630 | N51: 33.5984 | R51: 51 | S51: 630 | T51: 132.3269 | V51: R-Bin04 a | W51: 0.178874 | Y51: 630 | Z51: 132.3269
A52: T-Bin04 a | B52: 0.016932 | C52: T-Bin04 a | D52: 0.203288 | F52: 52 | G52: 635 | H52: 18.7111 | J52: R-Bin04 b | K52: 0.985944 | M52: 635 | N52: 18.7111 | R52: 52 | S52: 635 | T52: 135.2533 | V52: R-Bin04 b | W52: 0.983872 | Y52: 635 | Z52: 135.2533
A53: T-Bin04 b | B53: 1.058687 | C53: T-Bin04 b | D53: 0.967959 | F53: 53 | G53: 640 | H53: 11.091 | J53: R-Bin05 a | K53: -0.114747 | M53: 640 | N53: 11.091 | R53: 53 | S53: 640 | T53: 136.874 | V53: R-Bin05 a | W53: -0.083004 | Y53: 640 | Z53: 136.874
A54: T-Bin05 a | B54: -0.240199 | C54: T-Bin05 a | D54: -0.058271 | F54: 54 | G54: 645 | H54: 10.4683 | J54: R-Bin05 b | K54: 0.993395 | M54: 645 | N54: 10.4683 | R54: 54 | S54: 645 | T54: 136.7607 | V54: R-Bin05 b | W54: 0.996549 | Y54: 645 | Z54: 136.7607
A55: T-Bin05 b | B55: 1.085799 | C55: T-Bin05 b | D55: 0.968961 | F55: 55 | G55: 650 | H55: 11.2611 | J55: R-Bin06 a | K55: -0.551884 | M55: 650 | N55: 11.2611 | R55: 55 | S55: 650 | T55: 135.6611 | V55: R-Bin06 a | W55: -0.505713 | Y55: 650 | Z55: 135.6611
A56: T-Bin06 a | B56: -0.598588 | C56: T-Bin06 a | D56: -0.493552 | F56: 56 | G56: 655 | H56: 10.1099 | J56: R-Bin06 b | K56: 0.833921 | M56: 655 | N56: 10.1099 | R56: 56 | S56: 655 | T56: 135.6471 | V56: R-Bin06 b | W56: 0.862702 | Y56: 655 | Z56: 135.6471
A57: T-Bin06 b | B57: 0.907679 | C57: T-Bin06 b | D57: 0.846215 | F57: 57 | G57: 660 | H57: 8.9038 | J57: R-Bin07 a | K57: -0.85937 | M57: 660 | N57: 8.9038 | R57: 57 | S57: 660 | T57: 138.3326 | V57: R-Bin07 a | W57: -0.821266 | Y57: 660 | Z57: 138.3326
A58: T-Bin07 a | B58: -0.801818 | C58: T-Bin07 a | D58: -0.818928 | F58: 58 | G58: 665 | H58: 7.5665 | J58: R-Bin07 b | K58: 0.511354 | M58: 665 | N58: 7.5665 | R58: 58 | S58: 665 | T58: 140.4024 | V58: R-Bin07 b | W58: 0.570546 | Y58: 665 | Z58: 140.4024
A59: T-Bin07 b | B59: 0.602448 | C59: T-Bin07 b | D59: 0.551003 | F59: 59 | G59: 670 | H59: 5.6666 | J59: R-Bin08 a | K59: -0.990661 | M59: 670 | N59: 5.6666 | R59: 59 | S59: 670 | T59: 140.5317 | V59: R-Bin08 a | W59: -0.994483 | Y59: 670 | Z59: 140.5317
A60: T-Bin08 a | B60: -0.931032 | C60: T-Bin08 a | D60: -0.999312 | F60: 60 | G60: 675 | H60: 5.3181 | J60: R-Bin08 b | K60: 0.136345 | M60: 675 | N60: 5.3181 | R60: 60 | S60: 675 | T60: 139.2987 | V60: R-Bin08 b | W60: 0.104897 | Y60: 675 | Z60: 139.2987
A61: T-Bin08 b | B61: 0.20987 | C61: T-Bin08 b | D61: 0.083733 | F61: 61 | G61: 680 | H61: 5.8703 | J61: R-Bin09 a | K61: -0.99169 | M61: 680 | N61: 5.8703 | R61: 61 | S61: 680 | T61: 134.4425 | V61: R-Bin09 a | W61: -0.984679 | Y61: 680 | Z61: 134.4425
A62: T-Bin09 a | B62: -0.917062 | C62: T-Bin09 a | D62: -0.99101 | F62: 62 | G62: 685 | H62: 6.3794 | J62: R-Bin09 b | K62: -0.128653 | M62: 685 | N62: 6.3794 | R62: 62 | S62: 685 | T62: 124.2957 | V62: R-Bin09 b | W62: -0.174374 | Y62: 685 | Z62: 124.2957
A63: T-Bin09 b | B63: -0.061861 | C63: T-Bin09 b | D63: -0.199576 | F63: 63 | G63: 690 | H63: 5.379 | J63: R-Bin10 a | K63: -0.863878 | M63: 690 | N63: 5.379 | R63: 63 | S63: 690 | T63: 121.3803 | V63: R-Bin10 a | W63: -0.87302 | Y63: 690 | Z63: 121.3803
A64: T-Bin10 a | B64: -0.6693 | C64: T-Bin10 a | D64: -0.881122 | F64: 64 | G64: 695 | H64: 4.6967 | J64: R-Bin10 b | K64: -0.503701 | M64: 695 | N64: 4.6967 | R64: 64 | S64: 695 | T64: 127.535 | V64: R-Bin10 b | W64: -0.487685 | Y64: 695 | Z64: 127.535
A65: T-Bin10 b | B65: -0.530682 | C65: T-Bin10 b | D65: -0.499416 | F65: 65 | G65: 700 | H65: 6.7085 | J65: R-Bin11 a | K65: -0.581181 | M65: 700 | N65: 6.7085 | R65: 65 | S65: 700 | T65: 131.0803 | V65: R-Bin11 a | W65: -0.569017 | Y65: 700 | Z65: 131.0803
A66: T-Bin11 a | B66: -0.41098 | C66: T-Bin11 a | D66: -0.580416 | F66: 66 | G66: =IF(INDEX($A$1:$A$500,MATCH("Spe*",$A$1:$A$500,0)+F66)=0,"",INDEX($A$1:$A$500,MATCH("Spe*",$A$1:$A$500,0)+F66)) -> 705 | H66: =IF(INDEX($A$1:$A$500,MATCH("Spe*",$A$1:$A$500,0)+F66)=0,"",INDEX($B$1:$B$500,MATCH("Spe*",$A$1:$A$500,0)+F66)) -> 12.506 | J66: R-Bin11 b | K66: -0.813774 | M66: =IF(G66="",NA(),ROUND(G66,0)) -> 705 | N66: =IF(H66="",NA(),H66) -> 12.506 | R66: 66 | S66: =IF(INDEX($C$1:$C$500,MATCH("Spe*",$C$1:$C$500,0)+R66)=0,"",INDEX($C$1:$C$500,MATCH("Spe*",$C$1:$C$500,0)+R66)) -> 705 | T66: =IF(INDEX($C$1:$C$500,MATCH("Spe*",$C$1:$C$500,0)+R66)=0,"",INDEX($D$1:$D$500,MATCH("Spe*",$C$1:$C$500,0)+R66)) -> 132.2817 | V66: R-Bin11 b | W66: -0.822326 | Y66: =IF(S66="",NA(),ROUND(S66,0)) -> 705 | Z66: =IF(T66="",NA(),T66) -> 132.2817
A67: T-Bin11 b | B67: -0.841762 | C67: T-Bin11 b | D67: -0.828076 | F67: =F66+1 -> 67 | G67: 710 | H67: 13.232 | J67: R-Bin12 a | K67: -0.325912 | M67: 710 | N67: 13.232 | R67: =R66+1 -> 67 | S67: 710 | T67: 129.9793 | V67: R-Bin12 a | W67: =IF($C$1="",NA(),INDEX($D$1:$D$200,MATCH(V67,$C$1:$C$200,0))) -> -0.146569 | Y67: 710 | Z67: 129.9793
A68: T-Bin12 a | B68: -0.244069 | C68: T-Bin12 a | D68: -0.160887 | F68: 68 | G68: 715 | H68: 6.6807 | J68: R-Bin12 b | K68: -0.9454 | M68: 715 | N68: 6.6807 | R68: 68 | S68: 715 | T68: 122.5828 | V68: R-Bin12 b | W68: -0.9892 | Y68: 715 | Z68: 122.5828
A69: T-Bin12 b | B69: -0.992116 | C69: T-Bin12 b | D69: -0.982805 | F69: 69 | G69: 720 | H69: 2.535 | J69: R-Bin13 a | K69: 0.104308 | M69: 720 | N69: 2.535 | R69: 69 | S69: 720 | T69: 116.0912 | V69: R-Bin13 a | W69: 0.166197 | Y69: 720 | Z69: 116.0912
A70: T-Bin13 a | B70: 0.126195 | C70: T-Bin13 a | D70: 0.161713 | F70: 70 | G70: 725 | H70: 1.5956 | J70: R-Bin13 b | K70: -0.994545 | M70: 725 | N70: 1.5956 | R70: 70 | S70: 725 | T70: 115.7872 | V70: R-Bin13 b | W70: -0.986093 | Y70: 725 | Z70: 115.7872
A71: T-Bin13 b | B71: -1.063556 | C71: T-Bin13 b | D71: -0.978615 | F71: 71 | G71: 730 | H71: 0.6619 | J71: R-Bin14 a | K71: 0.440265 | M71: 730 | N71: 0.6619 | R71: 71 | S71: 730 | T71: 119.2402 | V71: R-Bin14 a | W71: 0.59517 | Y71: 730 | Z71: 119.2402
A72: T-Bin14 a | B72: 0.438967 | C72: T-Bin14 a | D72: 0.592186 | F72: 72 | G72: 735 | H72: 0.78 | J72: R-Bin14 b | K72: -0.897868 | M72: 735 | N72: 0.78 | R72: 72 | S72: 735 | T72: 124.2648 | V72: R-Bin14 b | W72: -0.8036 | Y72: 735 | Z72: 124.2648
A73: T-Bin14 b | B73: -0.967362 | C73: T-Bin14 b | D73: -0.791477 | F73: 73 | G73: 740 | H73: 0.8606 | J73: R-Bin15 a | K73: 0.802698 | M73: 740 | N73: 0.8606 | R73: 73 | S73: 740 | T73: 127.0956 | V73: R-Bin15 a | W73: 0.833 | Y73: 740 | Z73: 127.0956
A74: T-Bin15 a | B74: 0.766615 | C74: T-Bin15 a | D74: 0.845845 | F74: 74 | G74: 745 | H74: 0.865 | J74: R-Bin15 b | K74: -0.596386 | M74: 745 | N74: 0.865 | R74: 74 | S74: 745 | T74: 127.8921 | V74: R-Bin15 b | W74: -0.553273 | Y74: 745 | Z74: 127.8921
A75: T-Bin15 b | B75: -0.694774 | C75: T-Bin15 b | D75: -0.542502 | F75: 75 | G75: 750 | H75: 0.2378 | J75: R-Bin16 a | K75: 0.986903 | M75: 750 | N75: 0.2378 | R75: 75 | S75: 750 | T75: 122.4545 | V75: R-Bin16 a | W75: 0.985226 | Y75: 750 | Z75: 122.4545
A76: T-Bin16 a | B76: 0.946757 | C76: T-Bin16 a | D76: 0.993776 | F76: 76 | G76: 755 | H76: 0.0564 | J76: R-Bin16 b | K76: -0.161315 | M76: 755 | N76: 0.0564 | R76: 76 | S76: 755 | T76: 102.3982 | V76: R-Bin16 b | W76: -0.171262 | Y76: 755 | Z76: 102.3982
A77: T-Bin16 b | B77: -0.259467 | C77: T-Bin16 b | D77: -0.161977 | F77: 77 | G77: 760 | H77: 0.0491 | J77: T-Bin01 a | K77: 0.869512 | M77: 760 | N77: 0.0491 | R77: 77 | S77: 760 | T77: 78.1263 | V77: T-Bin01 a | W77: 0.996644 | Y77: 760 | Z77: 78.1263
A78: Rf_Bin01 | B78: 75 | C78: Rf_Bin01 | D78: 95 | F78: 78 | G78: 765 | H78: 0 | J78: T-Bin01 b | K78: 0.175164 | M78: 765 | N78: 0 | R78: 78 | S78: 765 | T78: 84.5574 | V78: T-Bin01 b | W78: 0.214853 | Y78: 765 | Z78: 84.5574
A79: Rf_Bin02 | B79: 89 | C79: Rf_Bin02 | D79: 97 | F79: 79 | G79: 770 | H79: 0 | J79: T-Bin02 a | K79: 0.783916 | M79: 770 | N79: 0 | R79: 79 | S79: 770 | T79: 108.9461 | V79: T-Bin02 a | W79: 0.855062 | Y79: 770 | Z79: 108.9461
A80: Rf_Bin03 | B80: 77 | C80: Rf_Bin03 | D80: 94 | F80: 80 | G80: 775 | H80: 0.1083 | J80: T-Bin02 b | K80: 0.567747 | M80: 775 | N80: 0.1083 | R80: 80 | S80: 775 | T80: 118.2256 | V80: T-Bin02 b | W80: 0.545851 | Y80: 775 | Z80: 118.2256
A81: Rf_Bin04 | B81: 70 | C81: Rf_Bin04 | D81: 95 | F81: 81 | G81: 780 | H81: 0 | J81: T-Bin03 a | K81: 0.445065 | M81: 780 | N81: 0 | R81: 81 | S81: 780 | T81: 119.3009 | V81: T-Bin03 a | W81: 0.56872 | Y81: 780 | Z81: 119.3009
A82: Rf_Bin05 | B82: 74 | C82: Rf_Bin05 | D82: 94 | F82: 82 | J82: T-Bin03 b | K82: 0.856544 | R82: 82 | V82: T-Bin03 b | W82: 0.828568
A83: Rf_Bin06 | B83: 85 | C83: Rf_Bin06 | D83: 97 | F83: 83 | J83: T-Bin04 a | K83: 0.016932 | R83: 83 | V83: T-Bin04 a | W83: 0.203288 | Y83: =IF(S83="",NA(),ROUND(S83,0)) ->  | Z83: =IF(T83="",NA(),T83) -> 
A84: Rf_Bin07 | B84: 81 | C84: Rf_Bin07 | D84: 97 | F84: 84 | J84: T-Bin04 b | K84: 1.058687 | R84: 84 | V84: T-Bin04 b | W84: 0.967959
A85: Rf_Bin08 | B85: 82 | C85: Rf_Bin08 | D85: 96 | F85: 85 | J85: T-Bin05 a | K85: -0.240199 | R85: 85 | V85: T-Bin05 a | W85: -0.058271
A86: Rf_Bin09 | B86: 85 | C86: Rf_Bin09 | D86: 97 | F86: 86 | J86: T-Bin05 b | K86: 1.085799 | R86: 86 | V86: T-Bin05 b | W86: 0.968961
A87: Rf_Bin10 | B87: 64 | C87: Rf_Bin10 | D87: 97 | F87: 87 | J87: T-Bin06 a | K87: -0.598588 | R87: 87 | V87: T-Bin06 a | W87: -0.493552
A88: Rf_Bin11 | B88: 72 | C88: Rf_Bin11 | D88: 97 | F88: 88 | J88: T-Bin06 b | K88: 0.907679 | R88: 88 | V88: T-Bin06 b | W88: 0.846215
A89: Rf_Bin12 | B89: 78 | C89: Rf_Bin12 | D89: 97 | F89: 89 | J89: T-Bin07 a | K89: -0.801818 | R89: 89 | V89: T-Bin07 a | W89: -0.818928
A90: Rf_Bin13 | B90: 84 | C90: Rf_Bin13 | D90: 98 | F90: 90 | J90: T-Bin07 b | K90: 0.602448 | R90: 90 | V90: T-Bin07 b | W90: 0.551003
A91: Rf_Bin14 | B91: 78 | C91: Rf_Bin14 | D91: 97 | F91: 91 | J91: T-Bin08 a | K91: -0.931032 | R91: 91 | V91: T-Bin08 a | W91: -0.999312
A92: Rf_Bin15 | B92: 79 | C92: Rf_Bin15 | D92: 96 | F92: 92 | J92: T-Bin08 b | K92: 0.20987 | R92: 92 | V92: T-Bin08 b | W92: 0.083733
A93: Rf_Bin16 | B93: 77 | C93: Rf_Bin16 | D93: 97 | F93: 93 | J93: T-Bin09 a | K93: -0.917062 | R93: 93 | V93: T-Bin09 a | W93: -0.99101
A94: Chromashift01 [%] | B94: -11 | C94: Chromashift01 [%] | D94: 2 | F94: 94 | J94: T-Bin09 b | K94: -0.061861 | R94: 94 | V94: T-Bin09 b | W94: -0.199576
A95: Chromashift02 [%] | B95: -3 | C95: Chromashift02 [%] | D95: 1 | F95: 95 | J95: T-Bin10 a | K95: -0.6693 | R95: 95 | V95: T-Bin10 a | W95: -0.881122
A96: Chromashift03 [%] | B96: -4 | C96: Chromashift03 [%] | D96: 1 | F96: 96 | J96: T-Bin10 b | K96: -0.530682 | R96: 96 | V96: T-Bin10 b | W96: -0.499416
A97: Chromashift04 [%] | B97: 4 | C97: Chromashift04 [%] | D97: -1 | F97: 97 | J97: T-Bin11 a | K97: -0.41098 | R97: 97 | V97: T-Bin11 a | W97: -0.580416
A98: Chromashift05 [%] | B98: 12 | C98: Chromashift05 [%] | D98: -3 | F98: 98 | J98: T-Bin11 b | K98: -0.841762 | R98: 98 | V98: T-Bin11 b | W98: -0.828076 | Y98: =IF(S98="",NA(),ROUND(S98,0)) ->  | Z98: =IF(T98="",NA(),T98) -> 
A99: Chromashift06 [%] | B99: 9 | C99: Chromashift06 [%] | D99: -2 | F99: 99 | J99: T-Bin12 a | K99: -0.244069 | R99: 99 | V99: T-Bin12 a | W99: -0.160887
A100: Chromashift07 [%] | B100: 0 | C100: Chromashift07 [%] | D100: -1 | F100: 100 | J100: T-Bin12 b | K100: -0.992116 | R100: 100 | V100: T-Bin12 b | W100: -0.982805
A101: Chromashift08 [%] | B101: -4 | C101: Chromashift08 [%] | D101: 0 | F101: 101 | J101: T-Bin13 a | K101: 0.126195 | R101: 101 | V101: T-Bin13 a | W101: 0.161713
A102: Chromashift09 [%] | B102: -9 | C102: Chromashift09 [%] | D102: 1 | F102: 102 | J102: T-Bin13 b | K102: -1.063556 | R102: 102 | V102: T-Bin13 b | W102: -0.978615
A103: Chromashift10 [%] | B103: -15 | C103: Chromashift10 [%] | D103: 1 | F103: 103 | J103: T-Bin14 a | K103: 0.438967 | R103: 103 | V103: T-Bin14 a | W103: 0.592186
A104: Chromashift11 [%] | B104: -7 | C104: Chromashift11 [%] | D104: 1 | F104: 104 | J104: T-Bin14 b | K104: -0.967362 | R104: 104 | V104: T-Bin14 b | W104: -0.791477
A105: Chromashift12 [%] | B105: 3 | C105: Chromashift12 [%] | D105: 0 | F105: 105 | J105: T-Bin15 a | K105: 0.766615 | R105: 105 | V105: T-Bin15 a | W105: 0.845845
A106: Chromashift13 [%] | B106: 7 | C106: Chromashift13 [%] | D106: -1 | F106: 106 | J106: T-Bin15 b | K106: -0.694774 | R106: 106 | V106: T-Bin15 b | W106: -0.542502
A107: Chromashift14 [%] | B107: 6 | C107: Chromashift14 [%] | D107: -1 | F107: 107 | J107: T-Bin16 a | K107: =IF($A$1="",NA(),INDEX($B$1:$B$200,MATCH(J107,$A$1:$A$200,0))) -> 0.946757 | R107: 107 | V107: T-Bin16 a | W107: 0.993776
A108: Chromashift15 [%] | B108: 2 | C108: Chromashift15 [%] | D108: 0 | F108: 108 | J108: T-Bin16 b | K108: -0.259467 | R108: 108 | V108: T-Bin16 b | W108: -0.161977
A109: Chromashift16 [%] | B109: -2 | C109: Chromashift16 [%] | D109: 1 | F109: 109 | I109: 1 | J109: Rf_Bin01 | K109: 75 | R109: 109 | U109: 1 | V109: Rf_Bin01 | W109: 95
A110: Flicker Index | B110: 0.073 | C110: Flicker Index | D110: 0 | F110: 110 | I110: 2 | J110: Rf_Bin02 | K110: 89 | R110: 110 | U110: 2 | V110: Rf_Bin02 | W110: 97
A111: Flicker [Hz] | B111: 100 | C111: Flicker [Hz] | D111: 0 | F111: 111 | I111: 3 | J111: Rf_Bin03 | K111: 77 | R111: 111 | U111: 3 | V111: Rf_Bin03 | W111: 94
A112: Flicker [%] | B112: 25.5 | C112: Flicker [%] | D112: 0 | F112: 112 | I112: 4 | J112: Rf_Bin04 | K112: 70 | R112: 112 | U112: 4 | V112: Rf_Bin04 | W112: 95
A113: Ra | B113: 79.81 | C113: Ra | D113: 96.95 | F113: 113 | I113: 5 | J113: Rf_Bin05 | K113: 74 | R113: 113 | U113: 5 | V113: Rf_Bin05 | W113: 94
A114: Re | B114: 70.18 | C114: Re | D114: 95.7 | F114: 114 | I114: 6 | J114: Rf_Bin06 | K114: 85 | R114: 114 | U114: 6 | V114: Rf_Bin06 | W114: 97
A115: GAI | B115: 69.14 | C115: GAI | D115: 95.1 | F115: 115 | I115: 7 | J115: Rf_Bin07 | K115: 81 | R115: 115 | U115: 7 | V115: Rf_Bin07 | W115: 97
A116: R1 | B116: 91.71 | C116: R1 | D116: 96.04 | F116: 116 | I116: 8 | J116: Rf_Bin08 | K116: 82 | R116: 116 | U116: 8 | V116: Rf_Bin08 | W116: 96
A117: R2 | B117: 88.83 | C117: R2 | D117: 97.21 | F117: 117 | I117: 9 | J117: Rf_Bin09 | K117: 85 | R117: 117 | U117: 9 | V117: Rf_Bin09 | W117: 97
A118: R3 | B118: 57.53 | C118: R3 | D118: 98.85 | F118: 118 | I118: 10 | J118: Rf_Bin10 | K118: 64 | R118: 118 | U118: 10 | V118: Rf_Bin10 | W118: 97
A119: R4 | B119: 86.75 | C119: R4 | D119: 96.56 | F119: 119 | I119: 11 | J119: Rf_Bin11 | K119: 72 | R119: 119 | U119: 11 | V119: Rf_Bin11 | W119: 97
A120: R5 | B120: 81.88 | C120: R5 | D120: 96.15 | F120: 120 | I120: 12 | J120: Rf_Bin12 | K120: 78 | R120: 120 | U120: 12 | V120: Rf_Bin12 | W120: 97
A121: R6 | B121: 75.45 | C121: R6 | D121: 96.64 | F121: 121 | I121: 13 | J121: Rf_Bin13 | K121: 84 | R121: 121 | U121: 13 | V121: Rf_Bin13 | W121: 98
A122: R7 | B122: 88.44 | C122: R7 | D122: 98.87 | F122: 122 | I122: 14 | J122: Rf_Bin14 | K122: 78 | R122: 122 | U122: 14 | V122: Rf_Bin14 | W122: 97
A123: R8 | B123: 67.86 | C123: R8 | D123: 95.27 | F123: 123 | I123: 15 | J123: Rf_Bin15 | K123: 79 | R123: 123 | U123: 15 | V123: Rf_Bin15 | W123: 96
A124: R9 | B124: -4.37 | C124: R9 | D124: 85.8 | F124: 124 | I124: 16 | J124: Rf_Bin16 | K124: 77 | R124: 124 | U124: 16 | V124: Rf_Bin16 | W124: 97
A125: R10 | B125: 44.54 | C125: R10 | D125: 93.74 | F125: 125 | I125: 1 | J125: Chromashift01 [%] | K125: -11 | R125: 125 | U125: 1 | V125: Chromashift01 [%] | W125: 2
A126: R11 | B126: 71.98 | C126: R11 | D126: 95.73 | F126: 126 | I126: 2 | J126: Chromashift02 [%] | K126: -3 | R126: 126 | U126: 2 | V126: Chromashift02 [%] | W126: 1
A127: R12 | B127: 49.3 | C127: R12 | D127: 94.14 | F127: 127 | I127: 3 | J127: Chromashift03 [%] | K127: -4 | R127: 127 | U127: 3 | V127: Chromashift03 [%] | W127: 1
A128: R13 | B128: 92.95 | C128: R13 | D128: 96.08 | F128: 128 | I128: 4 | J128: Chromashift04 [%] | K128: 4 | R128: 128 | U128: 4 | V128: Chromashift04 [%] | W128: -1
A129: R14 | B129: 71.88 | C129: R14 | D129: 99.31 | F129: 129 | I129: 5 | J129: Chromashift05 [%] | K129: 12 | R129: 129 | U129: 5 | V129: Chromashift05 [%] | W129: -3
A130: R15 | B130: 88.02 | C130: R15 | D130: 95.11 | F130: 130 | G130: =IF(INDEX($A$1:$A$500,MATCH("Spe*",$A$1:$A$500,0)+F130)=0,"",INDEX($A$1:$A$500,MATCH("Spe*",$A$1:$A$500,0)+F130)) ->  | H130: =IF(INDEX($A$1:$A$500,MATCH("Spe*",$A$1:$A$500,0)+F130)=0,"",INDEX($B$1:$B$500,MATCH("Spe*",$A$1:$A$500,0)+F130)) ->  | I130: 6 | J130: Chromashift06 [%] | K130: 9 | M130: =IF(G130="",NA(),ROUND(G130,0)) ->  | N130: =IF(H130="",NA(),H130) ->  | R130: 130 | S130: =IF(INDEX($C$1:$C$500,MATCH("Spe*",$C$1:$C$500,0)+R130)=0,"",INDEX($C$1:$C$500,MATCH("Spe*",$C$1:$C$500,0)+R130)) ->  | T130: =IF(INDEX($C$1:$C$500,MATCH("Spe*",$C$1:$C$500,0)+R130)=0,"",INDEX($D$1:$D$500,MATCH("Spe*",$C$1:$C$500,0)+R130)) ->  | U130: 6 | V130: Chromashift06 [%] | W130: -2
A131: x | B131: 0.394 | C131: x | D131: 0.3337 | F131: =F130+1 -> 131 | I131: 7 | J131: Chromashift07 [%] | K131: 0 | R131: =R130+1 -> 131 | U131: 7 | V131: Chromashift07 [%] | W131: =IF($C$1="",NA(),INDEX($D$1:$D$200,MATCH(V131,$C$1:$C$200,0))) -> -1
A132: y | B132: 0.3976 | C132: y | D132: 0.3437 | F132: 132 | I132: 8 | J132: Chromashift08 [%] | K132: -4 | R132: 132 | U132: 8 | V132: Chromashift08 [%] | W132: 0
A133: u' | B133: 0.2257 | C133: u' | D133: 0.2067 | F133: 133 | I133: 9 | J133: Chromashift09 [%] | K133: -9 | R133: 133 | U133: 9 | V133: Chromashift09 [%] | W133: 1
A134: v' | B134: 0.5124 | C134: v' | D134: 0.479 | F134: 134 | I134: 10 | J134: Chromashift10 [%] | K134: -15 | R134: 134 | U134: 10 | V134: Chromashift10 [%] | W134: 1
A135: u | B135: 0.2257 | C135: u | D135: 0.2067 | F135: 135 | I135: 11 | J135: Chromashift11 [%] | K135: -7 | R135: 135 | U135: 11 | V135: Chromashift11 [%] | W135: 1
A136: v | B136: 0.3416 | C136: v | D136: 0.3194 | F136: 136 | I136: 12 | J136: Chromashift12 [%] | K136: 3 | R136: 136 | U136: 12 | V136: Chromashift12 [%] | W136: 0
A137: Lambda Peak [nm] | B137: 543 | C137: Lambda Peak [nm] | D137: 477 | F137: 137 | I137: 13 | J137: Chromashift13 [%] | K137: 7 | R137: 137 | U137: 13 | V137: Chromashift13 [%] | W137: -1
A138: Lambda Peak | B138: 168576.39 | C138: Lambda Peak | D138: 144880.75 | F138: 138 | I138: 14 | J138: Chromashift14 [%] | K138: 6 | R138: 138 | U138: 14 | V138: Chromashift14 [%] | W138: -1
A139: Farbreinheit [%] | B139: 37.5 | C139: Farbreinheit [%] | D139: 3.2 | F139: 139 | I139: 15 | J139: Chromashift15 [%] | K139: 2 | R139: 139 | U139: 15 | V139: Chromashift15 [%] | W139: 0
A140: Dominante Wellenlänge [nm] | B140: 577 | C140: Dominante Wellenl‰nge [nm] | D140: 555 | F140: 140 | I140: 16 | J140: Chromashift16 [%] | K140: -2 | R140: 140 | U140: 16 | V140: Chromashift16 [%] | W140: 1
F141: 141 | R141: 141
A142: Auflösung | B142: 5 nm | C142: Auflˆsung | D142: 5 | F142: 142 | R142: 142
A143: Spektrum in [nm] | B143: mW/m²/nm | C143: Spektrum in [nm] | D143: 0 | F143: 143 | R143: 143
A144: 380 | B144: 0.5724 | C144: 380 | D144: 42.6069 | F144: 144 | R144: 144
A145: 385 | B145: 0.2068 | C145: 385 | D145: 44.1981 | F145: 145 | R145: 145
A146: 390 | B146: 0.4615 | C146: 390 | D146: 48.4497 | F146: 146 | R146: 146
A147: 395 | B147: 1.4526 | C147: 395 | D147: 59.8129 | F147: 147 | R147: 147
A148: 400 | B148: 15.3386 | C148: 400 | D148: 79.4269 | F148: 148 | R148: 148
A149: 405 | B149: 19.5168 | C149: 405 | D149: 88.9175 | F149: 149 | R149: 149
A150: 410 | B150: 7.0986 | C150: 410 | D150: 94.2277 | F150: 150 | R150: 150
A151: 415 | B151: 5.8689 | C151: 415 | D151: 98.6135 | F151: 151 | R151: 151
A152: 420 | B152: 8.2624 | C152: 420 | D152: 100.0747 | F152: 152 | R152: 152
A153: 425 | B153: 11.8791 | C153: 425 | D153: 98.5439 | F153: 153 | R153: 153
A154: 430 | B154: 41.2391 | C154: 430 | D154: 100.3488 | F154: 154 | R154: 154
A155: 435 | B155: 64.1299 | C155: 435 | D155: 110.0917 | F155: 155 | R155: 155
A156: 440 | B156: 32.8832 | C156: 440 | D156: 119.6392 | F156: 156 | R156: 156
A157: 445 | B157: 18.2843 | C157: 445 | D157: 128.7273 | F157: 157 | R157: 157
A158: 450 | B158: 18.1922 | C158: 450 | D158: 135.4352 | F158: 158 | R158: 158
A159: 455 | B159: 17.9373 | C159: 455 | D159: 138.938 | F159: 159 | R159: 159
A160: 460 | B160: 16.9191 | C160: 460 | D160: 142.422 | F160: 160 | R160: 160
A161: 465 | B161: 15.5221 | C161: 465 | D161: 142.4762 | F161: 161 | R161: 161
A162: 470 | B162: 14.143 | C162: 470 | D162: 142.6783 | F162: 162 | R162: 162 | Y162: =IF(S162="",NA(),ROUND(S162,0)) ->  | Z162: =IF(T162="",NA(),T162) -> 
A163: 475 | B163: 14.6428 | C163: 475 | D163: 144.5065 | F163: 163 | R163: 163
A164: 480 | B164: 24.4728 | C164: 480 | D164: 143.8343 | F164: 164 | R164: 164
A165: 485 | B165: 39.4171 | C165: 485 | D165: 140.5405 | F165: 165 | R165: 165
A166: 490 | B166: 36.7989 | C166: 490 | D166: 142.1223 | F166: 166 | R166: 166
A167: 495 | B167: 23.703 | C167: 495 | D167: 143.5925 | F167: 167 | R167: 167
A168: 500 | B168: 13.5647 | C168: 500 | D168: 142.3747 | F168: 168 | R168: 168
A169: 505 | B169: 8.2265 | C169: 505 | D169: 143.0867 | F169: 169 | R169: 169
A170: 510 | B170: 6.1431 | C170: 510 | D170: 142.2774 | F170: 170 | R170: 170
A171: 515 | B171: 5.6165 | C171: 515 | D171: 138.1906 | F171: 171 | R171: 171
A172: 520 | B172: 5.7843 | C172: 520 | D172: 138.2417 | F172: 172 | R172: 172
A173: 525 | B173: 7.9572 | C173: 525 | D173: 139.9675 | F173: 173 | R173: 173
A174: 530 | B174: 17.5209 | C174: 530 | D174: 140.9057 | F174: 174 | R174: 174
A175: 535 | B175: 56.849 | C175: 535 | D175: 140.9872 | F175: 175 | R175: 175
A176: 540 | B176: 139.4167 | C176: 540 | D176: 140.2766 | F176: 176 | R176: 176
A177: 545 | B177: 160.0821 | C177: 545 | D177: 140.2628 | F177: 177 | R177: 177
A178: 550 | B178: 86.4032 | C178: 550 | D178: 139.6259 | F178: 178 | R178: 178
A179: 555 | B179: 32.0569 | C179: 555 | D179: 138.0119 | F179: 179 | R179: 179
A180: 560 | B180: 16.0821 | C180: 560 | D180: 135.1609 | F180: 180 | R180: 180
A181: 565 | B181: 13.2568 | C181: 565 | D181: 132.7949 | F181: 181 | R181: 181
A182: 570 | B182: 15.9605 | C182: 570 | D182: 130.6553 | F182: 182 | R182: 182
A183: 575 | B183: 28.3709 | C183: 575 | D183: 130.7058 | F183: 183 | R183: 183
A184: 580 | B184: 42.8839 | C184: 580 | D184: 132.814 | F184: 184 | R184: 184
A185: 585 | B185: 47.6159 | C185: 585 | D185: 133.1275 | F185: 185 | R185: 185
A186: 590 | B186: 43.179 | C186: 590 | D186: 131.7606 | F186: 186 | R186: 186
A187: 595 | B187: 36.7412 | C187: 595 | D187: 131.8843 | F187: 187 | R187: 187
A188: 600 | B188: 37.3251 | C188: 600 | D188: 132.6607 | F188: 188 | R188: 188
A189: 605 | B189: 78.0795 | C189: 605 | D189: 133.4066 | F189: 189 | R189: 189
A190: 610 | B190: 135.8429 | C190: 610 | D190: 133.0814 | F190: 190 | R190: 190
A191: 615 | B191: 105.4771 | C191: 615 | D191: 132.9246 | F191: 191 | R191: 191
A192: 620 | B192: 55.5173 | C192: 620 | D192: 133.1305 | F192: 192 | R192: 192
A193: 625 | B193: 43.1929 | C193: 625 | D193: 131.8954 | F193: 193 | R193: 193
A194: 630 | B194: 33.5984 | C194: 630 | D194: 132.3269 | F194: 194 | G194: =IF(INDEX($A$1:$A$500,MATCH("Spe*",$A$1:$A$500,0)+F194)=0,"",INDEX($A$1:$A$500,MATCH("Spe*",$A$1:$A$500,0)+F194)) ->  | H194: =IF(INDEX($A$1:$A$500,MATCH("Spe*",$A$1:$A$500,0)+F194)=0,"",INDEX($B$1:$B$500,MATCH("Spe*",$A$1:$A$500,0)+F194)) ->  | M194: =IF(G194="",NA(),ROUND(G194,0)) ->  | N194: =IF(H194="",NA(),H194) ->  | R194: 194 | S194: =IF(INDEX($C$1:$C$500,MATCH("Spe*",$C$1:$C$500,0)+R194)=0,"",INDEX($C$1:$C$500,MATCH("Spe*",$C$1:$C$500,0)+R194)) ->  | T194: =IF(INDEX($C$1:$C$500,MATCH("Spe*",$C$1:$C$500,0)+R194)=0,"",INDEX($D$1:$D$500,MATCH("Spe*",$C$1:$C$500,0)+R194)) -> 
A195: 635 | B195: 18.7111 | C195: 635 | D195: 135.2533 | F195: =F194+1 -> 195 | R195: =R194+1 -> 195
A196: 640 | B196: 11.091 | C196: 640 | D196: 136.874 | F196: 196 | R196: 196
A197: 645 | B197: 10.4683 | C197: 645 | D197: 136.7607 | F197: 197 | R197: 197
A198: 650 | B198: 11.2611 | C198: 650 | D198: 135.6611 | F198: 198 | R198: 198
A199: 655 | B199: 10.1099 | C199: 655 | D199: 135.6471 | F199: 199 | R199: 199
A200: 660 | B200: 8.9038 | C200: 660 | D200: 138.3326 | F200: 200 | R200: 200
... 58 more rows

Sheet Version 1.7
